Workbook

Sheet Profile
A1: dk;kZy;& | C1: 15tSM Jhxaxkuxj
A2: eksgj& | C2: Budget Estemate | F2: foHkkx dk uke | G2: f'k{kk foHkkx
A3: ihbZbZvks 10tSM ,oa iz/kkukpk;Z | C3: 2202-02-109-27-01 | F3: vkWfQl vkbZMh | G3: uke MhMhvks | I3: uEcj
A4: jktdh; mPp ek/;fed fo|ky; | F4: 2405 | G4: izHkkr 'kekZ | I4: 1234567890
A5: 15tSM Jhxaxkuxj | D5: ctV o"kZ | E5: 2023&2024 | G5: rS;kj drkZ
A6: ctV en eq[; 'kh"kZ | G6: lqfer fxjh | I6: 1234567890
C7: UnProtect All Worksheet PASSWORD - sumit | F7: onhZ HkRrk iq:"k dkfeZd la[;k | H7: 00 | J7: 1650 | K7: =J7*H7 -> 0 | L7: =K7+K8 -> 1950
F8: onhZ HkRrk efgyk dkfeZd la[;k | H8: 01 | J8: 1950 | K8: =J8*H8 -> 1950
A9: vkxkeh osru o`f} fnukad | C9: 2023-07-01 | F9: cksul dkfeZdks dh la[;k | H9: 08
A10: Ldhe dk uke | C10: LVsV Q.M | F10: dSf'k;j HkRrk dkfeZd dh la[;k | H10: 00
A11: ekax la[;k | C11: 24
A12: ctV Lohd`fr esa fo|ky; dh Ø-la- | C12: 25 | E12: Arear Month | F12: 02 | G12: egaxkbZ HkÙkk nj | H12: 34% | I12: DA Arr. | J12: 0% | K12: HRA | L12: 9%
A13: xr rhu o"ksksZa ds vk; ,oa O;; dk fooj.k | B13: gsM | F13: 2019-20 | G13: 2020-21 | H13: 2021-22 | I13: 08/21 to 03/22 | J13: 04/22 to 07/22 | K13: la'kksf/kr vuqeku 08@2022 ls 03@2023 | L13: vk; vuqeku 2023&2024
A14: vk;
A15: f'k{k.k 'kqYd | B15: 0202&02 | C15: 102 | D15: 01 | E15: 00 | F15: 0 | G15: 0 | H15: 0 | I15: 0 | J15: 0 | K15: 0 | L15: 0
A16: Vh-lh- | B16: 0202&02 | F16: 85 | G16: 95 | H16: 50 | I16: 0 | J16: 45 | K16: 15 | L16: 60
A17: izos'k 'kqYd | B17: 0202&02 | F17: 50 | G17: 70 | H17: 40 | I17: 0 | J17: 30 | K17: 10 | L17: 50
A18: vuqi;ksxh lkeku ds fuLrkj.k ls vk; | B18: 0202&02
A19: fofo/k | B19: 0202&02
A20: vU; | B20: 0202&02 | H20: 5
A21: O;; | C21: Lohd`r ctV 2022&2023 | F21: [kpksZa dk fooj.k | I21: O;; 08@21 ls 03@22 | K21: O;; 04@22 ls 07@22 | N21: lEHkkfor O;; | O21: vk; vuqeku 2023&2024 | P21: 08/21 to 03/22 | Q21: 04/22 to 07/22 | AJ21: dqy ;ksx | AK21: la'kksf/kr vuqeku ¼pkyw o"kZ½ | AL21: vk;&O;; vuqeku ¼vkxkeh o"kZ½
A22: en | B22: lc gsM | C22: dqy ;ksx | D22: jkT; fuf/k | E22: dsUnzh; lgk;rk | F22: 2019-20 | G22: 2020-21 | H22: 21&22 esa ekpZ2022 dk th-,-19 | I22: jkT; fuf/k | J22: dsUnzh; lgk;rk | K22: jkT; fuf/k | L22: dsUnzh; lgk;rk
A23: laosru | B23: 01 | C23: =SUM(D23+E23) -> 2500000 | D23: 2500000 | E23: 0 | F23: 5555511 | G23: 6303330 | H23: 7837900 | I23: 5559492 | J23: 0 | K23: 1500000 | L23: 0 | N23: =$O$114 -> 1805740 | O23: =N114 -> 1858870 | P23: =I23+J23 -> 5559492 | Q23: =K23+L23 -> 1500000 | AJ23: =SUM(Q23+N23) -> 3305740 | AK23: =$O$114 -> 1805740 | AL23: =$N$114 -> 1858870
A24: ;k=k O;; | B24: 03 | C24: =SUM(D24+E24) -> 0 | D24: 0 | E24: 0 | F24: 0 | G24: 30000 | H24: 22910 | I24: 22910 | J24: 0 | K24: 0 | L24: 0 | N24: =AK24 -> 0 | O24: =AL24 -> 0 | P24: 22910 | Q24: 0 | AJ24: 0 | AK24: 0 | AL24: 0
A25: fpfdRlk O;; | B25: 04 | C25: 0 | D25: 0 | E25: 0 | F25: 0 | G25: 0 | H25: 0 | I25: 0 | J25: 0 | K25: 0 | L25: 0 | N25: =AK25 -> 0 | O25: =AL25 -> 0 | P25: 0 | Q25: 0 | AJ25: 0 | AK25: 0 | AL25: 0
A26: dk;kZy; O;; | B26: 05 | C26: 0 | D26: 0 | E26: 0 | F26: 0 | G26: 0 | H26: 0 | I26: 0 | J26: 0 | K26: 0 | L26: 0 | N26: 0 | O26: 0 | P26: 0 | Q26: 0 | AJ26: 0 | AK26: 0 | AL26: 0
A27: fdjk;k dj jk;fYV | B27: 09 | C27: 0 | D27: 0 | E27: 0 | F27: 0 | G27: 0 | H27: 0 | I27: 0 | J27: 0 | K27: 0 | L27: 0 | N27: 0 | O27: 0 | P27: 0 | Q27: 0 | AJ27: 0 | AK27: 0 | AL27: 0
A28: e'khujh lkt lkeku | B28: 20 | C28: 0 | D28: 0 | E28: 0 | F28: 0 | G28: 0 | H28: 0 | I28: 0 | J28: 0 | K28: 0 | L28: 0 | N28: 0 | O28: 0 | P28: 0 | Q28: 0 | AJ28: 0 | AK28: 0 | AL28: 0
A29: iqLrdky; | B29: 31 | C29: 0 | D29: 0 | E29: 0 | F29: 0 | G29: 0 | H29: 0 | I29: 0 | J29: 0 | K29: 0 | L29: 0 | N29: 0 | O29: 0 | P29: 0 | Q29: 0 | AJ29: 0 | AK29: 0 | AL29: 0
A30: iz;ksx'kkyk | B30: 33 | C30: 0 | D30: 0 | E30: 0 | F30: 0 | G30: 0 | H30: 0 | I30: 0 | J30: 0 | K30: 0 | L30: 0 | N30: 0 | O30: 0 | P30: 0 | Q30: 0 | AJ30: 0 | AK30: 0 | AL30: 0
A31: ofnZ;ka | B31: 37 | C31: 0 | D31: 0 | E31: 0 | F31: 3600 | G31: 3600 | H31: 1950 | I31: 1950 | J31: 0 | K31: 0 | L31: 0 | N31: 1950 | O31: 1950 | P31: 1950 | Q31: 0 | AJ31: 1950 | AK31: =$L$7 -> 1950 | AL31: =$L$7 -> 1950
A32: vU; izHkkj | B32: 28 | C32: 0 | D32: 0 | E32: 0 | F32: 0 | G32: 0 | H32: 0 | I32: 0 | J32: 0 | K32: 0 | L32: 0 | N32: 0 | O32: 0 | P32: 0 | Q32: 0 | AJ32: 0 | AK32: 0 | AL32: 0
A33: foHkkxh;lsokvksa ij fof'k"V O;; | B33: 57 | C33: 0 | D33: 0 | E33: 0 | F33: 0 | G33: 0 | H33: 0 | I33: 0 | J33: 0 | K33: 0 | L33: 0 | N33: 0 | O33: 0 | P33: 0 | Q33: 0 | AJ33: 0 | AK33: 0 | AL33: 0
A34: ;ksx | C34: =SUM(C23:C33) -> 2500000 | D34: =SUM(D23:D33) -> 2500000 | E34: 0 | F34: 5559111 | G34: 6336930 | H34: 7862760 | I34: 5584352 | J34: 0 | K34: 1500000 | L34: 0 | AK34: =SUM(AK23:AK33) -> 1807690 | AL34: 1860820
A35: o"kZ 2021&2022 ds fy, jsUt ds vuqlkj laosru dh jkf'k | F35: OID | G35: =$F$4 -> 2405 | N35: BE 2021-2022
A36: dk;kZy; %& | D36: =$C$1 -> 15tSM Jhxaxkuxj | H36: =$C$3 -> 2202-02-109-27-01 | K36: =$C$10 -> LVsV Q.M | M36: =$E$5 -> 2023&2024 | O36: RE 2020-2021
A38: ys[kk 'kh"kZd ¼foLr`r 'kh"kZ½ | B38: Øe la[;k | C38: dkfeZd dk uke | E38: deZpkjh vkbZ Mh | F38: thih,Q@,uih,l uEcj | G38: in | H38: in dk Lohd`r osru | J38: ctV dh izkjfEHkd frfFk ;kfu 1ekpZ2022 dks deZpkjh dk osru | K38: igyh ekpZ ls vfUre Qjojh ds fy;s fu/kkZfjr jde | L38: o`f) tks bl vof/k esa gksxh | N38: vkxkeh o"kZ 2023&24 ds fy;s jde ¼dkye 8$10½ | O38: pkyw o"kZ ds fy;s la'kksf/kr vuqeku 2022&23 | P38: fo'ks"k fooj.k | R38: vkxkeh osru o`f) fnukad
H39: xzsM is@ ysoy | L39: frfFk o`f) | M39: jde o`f) | R39: =$C$9 -> 2023-07-01
B43: 1 | D43: 2 | E43: 3 | F43: 14 | G43: 4 | H43: 5 | I43: 6 | J43: 7 | K43: 8 | L43: 9 | M43: 10 | N43: 11 | O43: 12 | P43: 13
A44: jktif=r | B44: 1 | C44: Jh | D44: lqfer fxjh | G44: iz/kkukpk;Z | H44: ysoy | I44: 16 | J44: 40300 | K44: =J44*12 -> 483600 | L44: =R39 -> 2023-07-01 | M44: =P44*8 -> 9600 | N44: =K44+M44 -> 493200 | O44: =N44-P44*12 -> 478800 | P44: =S44 -> 1200 | S44: =ROUND(T44,-2) -> 1200 | T44: =J44*3/100 -> 1209.00 | V44: =Y44-X44 -> 40284 | W44: =IF(R39>=DATE(2017,7,1),CEILING(Y44*3%,10)+V44,V44) -> 41494 | X44: =I44 -> 16 | Y44: =J44 -> 40300 | Z44: =SUM(W44:X44) -> 41510 | AA44: =Z44-Y44 -> 1210 | AC44: =J44 -> 40300 | AD44: =AC44*3/100 -> 1209.00 | AE44: =ROUNDUP(AD44,-1) -> 1210.00 | AF44: =AC44+AE44 -> 41510 | AI44: =AF44-J44 -> 1210
A45: jktif=r | B45: 1 | G45: O;k[;krk | H45: ysoy | I45: 16 | J45: 59500 | K45: =J45*12 -> 714000 | L45: =L44 -> 2023-07-01 | M45: =P45*8 -> 14400 | N45: =K45+M45 -> 728400 | O45: =N45-P45*12 -> 706800 | P45: =S45 -> 1800 | S45: =ROUND(T45,-2) -> 1800 | T45: =J45*3/100 -> 1785.00 | V45: =Y45-X45 -> 59484 | W45: =IF(R39>=DATE(2017,7,1),CEILING(Y45*3%,10)+V45,V45) -> 61274 | X45: =I45 -> 16 | Y45: =J45 -> 59500 | Z45: =SUM(W45:X45) -> 61290 | AA45: =Z45-Y45 -> 1790 | AC45: =J45 -> 59500 | AD45: =AC45*3/100 -> 1785.00 | AE45: =ROUNDUP(AD45,-1) -> 1790 | AF45: =AC45+AE45 -> 61290 | AI45: =AF45-J45 -> 1790
A46: jktif=r | B46: 2 | G46: O;k[;krk | H46: ysoy | I46: 16 | J46: 0 | K46: 0 | L46: =L44 -> 2023-07-01 | M46: 0 | N46: 0 | O46: =N46-P46*12 -> 0 | P46: 0 | S46: 0 | T46: 0.00 | V46: -16 | W46: =IF(R39>=DATE(2017,7,1),CEILING(Y46*3%,10)+V46,V46) -> -16 | X46: 16 | Y46: 0 | Z46: 0 | AA46: 0 | AC46: 0 | AD46: 0.00 | AE46: 0 | AF46: 0 | AI46: 0
A47: jktif=r | B47: 3 | G47: O;k[;krk | H47: ysoy | I47: 16 | J47: 0 | K47: 0 | L47: =L46 -> 2023-07-01 | M47: =P47*8 -> 0 | N47: =K47+M47 -> 0 | O47: 0 | P47: 0 | S47: 0 | T47: 0.00 | V47: -16 | W47: =IF(R39>=DATE(2017,7,1),CEILING(Y47*3%,10)+V47,V47) -> -16 | X47: 16 | Y47: 0 | Z47: 0 | AA47: 0 | AC47: 0 | AD47: 0.00 | AE47: 0 | AF47: 0 | AI47: 0
A48: jktif=r | B48: 4 | G48: O;k[;krk | H48: ysoy | I48: 16 | J48: 0 | K48: 0 | L48: =L46 -> 2023-07-01 | M48: 0 | N48: 0 | O48: 0 | P48: 0 | S48: 0 | T48: 0.00 | V48: -16 | W48: =IF(R39>=DATE(2017,7,1),CEILING(Y48*3%,10)+V48,V48) -> -16 | X48: 16 | Y48: 0 | Z48: 0 | AA48: =Z48-Y48 -> 0 | AC48: 0 | AD48: 0.00 | AE48: 0 | AF48: 0 | AI48: 0
A49: jktif=r | B49: 5 | G49: O;k[;krk | H49: ysoy | I49: 6 | J49: 0 | K49: 0 | L49: =L48 -> 2023-07-01 | M49: 0 | N49: 0 | O49: 0 | P49: 0 | S49: 0 | T49: 0.00 | V49: -6 | W49: =IF(R39>=DATE(2017,7,1),CEILING(Y49*3%,10)+V49,V49) -> -6 | X49: 6 | Y49: =J49 -> 0 | Z49: =SUM(W49:X49) -> 0 | AA49: 0 | AC49: 0 | AD49: 0.00 | AE49: 0 | AF49: 0 | AI49: 0
A50: jktif=r | B50: 6 | G50: O;k[;krk | H50: ysoy | I50: 7 | J50: 0 | K50: 0 | L50: =L48 -> 2023-07-01 | M50: 0 | N50: 0 | O50: 0 | P50: 0 | S50: 0 | T50: 0.00 | V50: =Y50-X50 -> -7 | W50: =IF(R39>=DATE(2017,7,1),CEILING(Y50*3%,10)+V50,V50) -> -7 | X50: =I50 -> 7 | Y50: 0 | Z50: 0 | AA50: 0 | AC50: 0 | AD50: 0.00 | AE50: 0 | AF50: 0 | AI50: 0
A51: jktif=r | B51: 7 | G51: O;k[;krk | H51: ysoy | I51: 8 | J51: 0 | K51: =J51*12 -> 0 | L51: 2023-07-01 | M51: =P51*8 -> 0 | N51: =K51+M51 -> 0 | O51: =N51-P51*12 -> 0 | P51: =S51 -> 0 | S51: =ROUND(T51,-2) -> 0 | T51: =J51*3/100 -> 0.00 | V51: =Y51-X51 -> -8 | W51: =IF(R40>=DATE(2017,7,1),CEILING(Y51*3%,10)+V51,V51) -> -8 | X51: =I51 -> 8 | Y51: =J51 -> 0 | Z51: =SUM(W51:X51) -> 0 | AA51: =Z51-Y51 -> 0 | AC51: =J51 -> 0 | AD51: =AC51*3/100 -> 0.00 | AE51: =ROUNDUP(AD51,-1) -> 0 | AF51: =AC51+AE51 -> 0 | AI51: =AF51-J51 -> 0
A52: jktif=r | B52: 8 | G52: O;k[;krk | H52: ysoy | I52: 9 | J52: 0 | K52: 0 | L52: 2023-07-01 | M52: 0 | N52: 0 | O52: 0 | P52: 0 | S52: 0 | T52: 0.00 | V52: -9 | W52: -9 | X52: 9 | Y52: 0 | Z52: 0 | AA52: 0 | AC52: 0 | AD52: 0.00 | AE52: 0 | AF52: 0 | AI52: 0
A53: jktif=r | B53: 9 | G53: O;k[;krk | H53: ysoy | I53: 10 | J53: 0 | K53: 0 | L53: 2023-07-01 | M53: 0 | N53: 0 | O53: 0 | P53: 0 | S53: 0 | T53: 0.00 | V53: -10 | W53: -10 | X53: 10 | Y53: 0 | Z53: 0 | AA53: 0 | AC53: 0 | AD53: 0.00 | AE53: 0 | AF53: 0 | AI53: 0
A54: jktif=r | B54: 10 | G54: O;k[;krk | H54: ysoy | I54: 11 | J54: 0 | K54: 0 | L54: 2023-07-01 | M54: 0 | N54: 0 | O54: 0 | P54: 0 | S54: 0 | T54: 0.00 | V54: -11 | W54: -11 | X54: 11 | Y54: 0 | Z54: 0 | AA54: 0 | AC54: 0 | AD54: 0.00 | AE54: 0 | AF54: 0 | AI54: 0
A55: jktif=r | B55: 11 | G55: O;k[;krk | H55: ysoy | I55: 12 | J55: 0 | K55: 0 | L55: 2023-07-01 | M55: 0 | N55: 0 | O55: 0 | P55: 0 | S55: 0 | T55: 0.00 | V55: -12 | W55: -12 | X55: 12 | Y55: 0 | Z55: 0 | AA55: 0 | AC55: 0 | AD55: 0.00 | AE55: 0 | AF55: 0 | AI55: 0
A56: jktif=r | B56: 12 | G56: O;k[;krk | H56: ysoy | I56: 13 | J56: 0 | K56: 0 | L56: 2023-07-01 | M56: 0 | N56: 0 | O56: 0 | P56: 0 | S56: 0 | T56: 0.00 | V56: -13 | W56: -13 | X56: 13 | Y56: 0 | Z56: 0 | AA56: 0 | AC56: 0 | AD56: 0.00 | AE56: 0 | AF56: 0 | AI56: 0
A57: jktif=r | B57: 13 | G57: O;k[;krk | H57: ysoy | I57: 14 | J57: 0 | K57: 0 | L57: 2023-07-01 | M57: 0 | N57: 0 | O57: 0 | P57: 0 | S57: 0 | T57: 0.00 | V57: -14 | W57: -14 | X57: 14 | Y57: 0 | Z57: 0 | AA57: 0 | AC57: 0 | AD57: 0.00 | AE57: 0 | AF57: 0 | AI57: 0
A58: jktif=r | B58: 14 | G58: O;k[;krk | H58: ysoy | I58: 15 | J58: 0 | K58: 0 | L58: 2023-07-01 | M58: 0 | N58: 0 | O58: 0 | P58: 0 | S58: 0 | T58: 0.00 | V58: -15 | W58: -15 | X58: 15 | Y58: 0 | Z58: 0 | AA58: 0 | AC58: 0 | AD58: 0.00 | AE58: 0 | AF58: 0 | AI58: 0
A59: jktif=r | B59: 15 | G59: O;k[;krk | H59: ysoy | I59: 16 | J59: 0 | K59: 0 | L59: 2023-07-01 | M59: 0 | N59: 0 | O59: 0 | P59: 0 | S59: 0 | T59: 0.00 | V59: -16 | W59: -16 | X59: 16 | Y59: 0 | Z59: 0 | AA59: 0 | AC59: 0 | AD59: 0.00 | AE59: 0 | AF59: 0 | AI59: 0
A60: jktif=r | B60: 16 | G60: O;k[;krk | H60: ysoy | I60: 17 | J60: 0 | K60: 0 | L60: 2023-07-01 | M60: 0 | N60: 0 | O60: 0 | P60: 0 | S60: 0 | T60: 0.00 | V60: -17 | W60: -17 | X60: 17 | Y60: 0 | Z60: 0 | AA60: 0 | AC60: 0 | AD60: 0.00 | AE60: 0 | AF60: 0 | AI60: 0
A61: jktif=r | B61: 17 | G61: O;k[;krk | H61: ysoy | I61: 18 | J61: 0 | K61: 0 | L61: 2023-07-01 | M61: 0 | N61: 0 | O61: 0 | P61: 0 | S61: 0 | T61: 0.00 | V61: -18 | W61: -18 | X61: 18 | Y61: 0 | Z61: 0 | AA61: 0 | AC61: 0 | AD61: 0.00 | AE61: 0 | AF61: 0 | AI61: 0
A62: jktif=r | B62: 18 | G62: O;k[;krk | H62: ysoy | I62: 19 | J62: 0 | K62: 0 | L62: 2023-07-01 | M62: 0 | N62: 0 | O62: 0 | P62: 0 | S62: 0 | T62: 0.00 | V62: -19 | W62: -19 | X62: 19 | Y62: 0 | Z62: 0 | AA62: 0 | AC62: 0 | AD62: 0.00 | AE62: 0 | AF62: 0 | AI62: 0
A63: jktif=r | B63: 19 | G63: O;k[;krk | H63: ysoy | I63: 20 | J63: 0 | K63: 0 | L63: 2023-07-01 | M63: 0 | N63: 0 | O63: 0 | P63: 0 | S63: 0 | T63: 0.00 | V63: -20 | W63: -20 | X63: 20 | Y63: 0 | Z63: 0 | AA63: 0 | AC63: 0 | AD63: 0.00 | AE63: 0 | AF63: 0 | AI63: 0
A64: jktif=r | B64: 20 | G64: O;k[;krk | H64: ysoy | I64: 21 | J64: 0 | K64: 0 | L64: 2023-07-01 | M64: 0 | N64: 0 | O64: 0 | P64: 0 | S64: 0 | T64: 0.00 | V64: -21 | W64: -21 | X64: 21 | Y64: 0 | Z64: 0 | AA64: 0 | AC64: 0 | AD64: 0.00 | AE64: 0 | AF64: 0 | AI64: 0
A65: jktif=r | B65: 21 | G65: O;k[;krk | H65: ysoy | I65: 22 | J65: 0 | K65: 0 | L65: 2023-07-01 | M65: 0 | N65: 0 | O65: 0 | P65: 0 | S65: 0 | T65: 0.00 | V65: -22 | W65: -22 | X65: 22 | Y65: 0 | Z65: 0 | AA65: 0 | AC65: 0 | AD65: 0.00 | AE65: 0 | AF65: 0 | AI65: 0
A66: vjktif=r | B66: 1 | C66: Jherh | D66: eUtq ukxiky | E66: RJGA200535013285 | F66: 110061722142 | G66: ofj"B v/;kid | H66: ysoy | I66: 11 | J66: 0 | K66: 0 | L66: =L50 -> 2023-07-01 | M66: =P66*8 -> 0 | N66: =K66+M66 -> 0 | O66: =N66-P66*12 -> 0 | P66: 0 | S66: 0 | T66: 0.00 | V66: -11 | W66: =IF(R39>=DATE(2017,7,1),CEILING(Y66*3%,10)+V66,V66) -> -11 | X66: 11 | Y66: 0 | Z66: 0 | AA66: 0 | AC66: 0 | AD66: 0.00 | AE66: 0 | AF66: 0 | AI66: 0
A67: vjktif=r | B67: 2 | C67: Jherh | D67: dkS'kY;k | E67: RJGA201435027389 | F67: 110191483960 | G67: ofj"B v/;kid | H67: ysoy | I67: 11 | J67: 0 | K67: 0 | L67: =L66 -> 2023-07-01 | M67: 0 | N67: 0 | O67: 0 | P67: 0 | S67: 0 | T67: 0.00 | V67: -11 | W67: =IF(R39>=DATE(2017,7,1),CEILING(Y67*3%,10)+V67,V67) -> -11 | X67: 11 | Y67: 0 | Z67: 0 | AA67: 0 | AC67: 0 | AD67: 0.00 | AE67: 0 | AF67: 0 | AI67: 0
A68: vjktif=r | B68: 3 | G68: ofj"B v/;kid | H68: ysoy | I68: 11 | J68: 0 | K68: 0 | L68: 2023-07-01 | M68: 0 | N68: 0 | O68: 0 | P68: 0 | S68: 0 | T68: 0.00 | V68: -11 | W68: =IF(R39>=DATE(2017,7,1),CEILING(Y68*3%,10)+V68,V68) -> -11 | X68: 11 | Y68: 0 | Z68: 0 | AA68: 0 | AC68: 0 | AD68: 0.00 | AE68: 0 | AF68: 0 | AI68: 0
A69: vjktif=r | B69: 4 | G69: ofj"B v/;kid | H69: ysoy | I69: 11 | J69: 0 | K69: 0 | L69: 2023-07-01 | M69: 0 | N69: 0 | O69: 0 | P69: 0 | S69: 0 | T69: 0.00 | V69: =Y69-X69 -> -11 | W69: =IF(R39>=DATE(2017,7,1),CEILING(Y69*3%,10)+V69,V69) -> -11 | X69: 11 | Y69: 0 | Z69: =SUM(W69:X69) -> 0 | AA69: 0 | AC69: 0 | AD69: 0.00 | AE69: 0 | AF69: 0 | AI69: 0
A70: vjktif=r | B70: 5 | G70: ofj"B v/;kid | H70: ysoy | I70: 11 | J70: 0 | K70: 0 | L70: 2023-07-01 | M70: 0 | N70: 0 | O70: 0 | P70: 0 | S70: 0 | T70: 0.00 | V70: =Y70-X70 -> -11 | W70: =IF(R39>=DATE(2017,7,1),CEILING(Y70*3%,10)+V70,V70) -> -11 | X70: 11 | Y70: 0 | Z70: =SUM(W70:X70) -> 0 | AA70: 0 | AC70: 0 | AD70: 0.00 | AE70: 0 | AF70: 0 | AI70: 0
A71: vjktif=r | B71: 6 | G71: ofj"B v/;kid | H71: ysoy | I71: 11 | J71: 0 | K71: 0 | L71: 2023-07-01 | M71: 0 | N71: 0 | O71: 0 | P71: 0 | S71: 0 | T71: 0.00 | V71: =Y71-X71 -> -11 | W71: =IF(R39>=DATE(2017,7,1),CEILING(Y71*3%,10)+V71,V71) -> -11 | X71: 11 | Y71: 0 | Z71: =SUM(W71:X71) -> 0 | AA71: 0 | AC71: 0 | AD71: 0.00 | AE71: 0 | AF71: 0 | AI71: 0
A72: vjktif=r | B72: 7 | G72: ofj"B v/;kid | H72: ysoy | I72: 11 | J72: 0 | K72: =J72*12 -> 0 | L72: 2023-07-01 | M72: =P72*8 -> 0 | N72: =K72+M72 -> 0 | O72: =N72-P72*12 -> 0 | P72: =S72 -> 0 | S72: =ROUND(T72,-2) -> 0 | T72: =J72*3/100 -> 0.00 | V72: =Y72-X72 -> -11 | W72: =IF(R40>=DATE(2017,7,1),CEILING(Y72*3%,10)+V72,V72) -> -11 | X72: =I72 -> 11 | Y72: =J72 -> 0 | Z72: =SUM(W72:X72) -> 0 | AA72: =Z72-Y72 -> 0 | AC72: =J72 -> 0 | AD72: =AC72*3/100 -> 0.00 | AE72: =ROUNDUP(AD72,-1) -> 0 | AF72: =AC72+AE72 -> 0 | AI72: =AF72-J72 -> 0
A73: vjktif=r | B73: 8 | G73: ofj"B v/;kid | H73: ysoy | I73: 11 | J73: 0 | K73: 0 | L73: 2023-07-01 | M73: 0 | N73: 0 | O73: 0 | P73: 0 | S73: 0 | T73: 0.00 | V73: -11 | W73: -11 | X73: 11 | Y73: 0 | Z73: 0 | AA73: 0 | AC73: 0 | AD73: 0.00 | AE73: 0 | AF73: 0 | AI73: 0
A74: vjktif=r | B74: 9 | G74: ofj"B v/;kid | H74: ysoy | I74: 11 | J74: 0 | K74: 0 | L74: 2023-07-01 | M74: 0 | N74: 0 | O74: 0 | P74: 0 | S74: 0 | T74: 0.00 | V74: -11 | W74: -11 | X74: 11 | Y74: 0 | Z74: 0 | AA74: 0 | AC74: 0 | AD74: 0.00 | AE74: 0 | AF74: 0 | AI74: 0
A75: vjktif=r | B75: 10 | G75: ofj"B v/;kid | H75: ysoy | I75: 11 | J75: 0 | K75: 0 | L75: 2023-07-01 | M75: 0 | N75: 0 | O75: 0 | P75: 0 | S75: 0 | T75: 0.00 | V75: -11 | W75: -11 | X75: 11 | Y75: 0 | Z75: 0 | AA75: 0 | AC75: 0 | AD75: 0.00 | AE75: 0 | AF75: 0 | AI75: 0
A76: vjktif=r | B76: 11 | G76: ofj"B v/;kid | H76: ysoy | I76: 11 | J76: 0 | K76: 0 | L76: 2023-07-01 | M76: 0 | N76: 0 | O76: 0 | P76: 0 | S76: 0 | T76: 0.00 | V76: -11 | W76: -11 | X76: 11 | Y76: 0 | Z76: 0 | AA76: 0 | AC76: 0 | AD76: 0.00 | AE76: 0 | AF76: 0 | AI76: 0
A77: vjktif=r | B77: 12 | G77: ofj"B v/;kid | H77: ysoy | I77: 11 | J77: 0 | K77: 0 | L77: 2023-07-01 | M77: 0 | N77: 0 | O77: 0 | P77: 0 | S77: 0 | T77: 0.00 | V77: -11 | W77: -11 | X77: 11 | Y77: 0 | Z77: 0 | AA77: 0 | AC77: 0 | AD77: 0.00 | AE77: 0 | AF77: 0 | AI77: 0
A78: vjktif=r | B78: 13 | G78: ofj"B v/;kid | H78: ysoy | I78: 11 | J78: 0 | K78: 0 | L78: 2023-07-01 | M78: 0 | N78: 0 | O78: 0 | P78: 0 | S78: 0 | T78: 0.00 | V78: -11 | W78: -11 | X78: 11 | Y78: 0 | Z78: 0 | AA78: 0 | AC78: 0 | AD78: 0.00 | AE78: 0 | AF78: 0 | AI78: 0
A79: vjktif=r | B79: 14 | G79: ofj"B v/;kid | H79: ysoy | I79: 11 | J79: 0 | K79: 0 | L79: 2023-07-01 | M79: 0 | N79: 0 | O79: 0 | P79: 0 | S79: 0 | T79: 0.00 | V79: -11 | W79: -11 | X79: 11 | Y79: 0 | Z79: 0 | AA79: 0 | AC79: 0 | AD79: 0.00 | AE79: 0 | AF79: 0 | AI79: 0
A80: vjktif=r | B80: 15 | G80: ofj"B v/;kid | H80: ysoy | I80: 11 | J80: 0 | K80: 0 | L80: 2023-07-01 | M80: 0 | N80: 0 | O80: 0 | P80: 0 | S80: 0 | T80: 0.00 | V80: -11 | W80: -11 | X80: 11 | Y80: 0 | Z80: 0 | AA80: 0 | AC80: 0 | AD80: 0.00 | AE80: 0 | AF80: 0 | AI80: 0
A81: vjktif=r | B81: 16 | G81: ofj"B v/;kid | H81: ysoy | I81: 11 | J81: 0 | K81: 0 | L81: 2023-07-01 | M81: 0 | N81: 0 | O81: 0 | P81: 0 | S81: 0 | T81: 0.00 | V81: -11 | W81: -11 | X81: 11 | Y81: 0 | Z81: 0 | AA81: 0 | AC81: 0 | AD81: 0.00 | AE81: 0 | AF81: 0 | AI81: 0
A82: vjktif=r | B82: 17 | G82: ofj"B v/;kid | H82: ysoy | I82: 11 | J82: 0 | K82: 0 | L82: 2023-07-01 | M82: 0 | N82: 0 | O82: 0 | P82: 0 | S82: 0 | T82: 0.00 | V82: -11 | W82: -11 | X82: 11 | Y82: 0 | Z82: 0 | AA82: 0 | AC82: 0 | AD82: 0.00 | AE82: 0 | AF82: 0 | AI82: 0
A83: vjktif=r | B83: 18 | G83: ofj"B v/;kid | H83: ysoy | I83: 11 | J83: 0 | K83: 0 | L83: 2023-07-01 | M83: 0 | N83: 0 | O83: 0 | P83: 0 | S83: 0 | T83: 0.00 | V83: -11 | W83: -11 | X83: 11 | Y83: 0 | Z83: 0 | AA83: 0 | AC83: 0 | AD83: 0.00 | AE83: 0 | AF83: 0 | AI83: 0
A84: vjktif=r | B84: 19 | G84: ofj"B v/;kid | H84: ysoy | I84: 11 | J84: 0 | K84: 0 | L84: 2023-07-01 | M84: 0 | N84: 0 | O84: 0 | P84: 0 | S84: 0 | T84: 0.00 | V84: -11 | W84: -11 | X84: 11 | Y84: 0 | Z84: 0 | AA84: 0 | AC84: 0 | AD84: 0.00 | AE84: 0 | AF84: 0 | AI84: 0
A85: vjktif=r | B85: 20 | G85: ofj"B v/;kid | H85: ysoy | I85: 11 | J85: 0 | K85: 0 | L85: 2023-07-01 | M85: 0 | N85: 0 | O85: 0 | P85: 0 | S85: 0 | T85: 0.00 | V85: -11 | W85: -11 | X85: 11 | Y85: 0 | Z85: 0 | AA85: 0 | AC85: 0 | AD85: 0.00 | AE85: 0 | AF85: 0 | AI85: 0
A86: vjktif=r | B86: 21 | G86: ofj"B v/;kid | H86: ysoy | I86: 11 | J86: 0 | K86: 0 | L86: 2023-07-01 | M86: 0 | N86: 0 | O86: 0 | P86: 0 | S86: 0 | T86: 0.00 | V86: -11 | W86: -11 | X86: 11 | Y86: 0 | Z86: 0 | AA86: 0 | AC86: 0 | AD86: 0.00 | AE86: 0 | AF86: 0 | AI86: 0
A87: vjktif=r | B87: 22 | G87: ofj"B v/;kid | H87: ysoy | I87: 11 | J87: 0 | K87: 0 | L87: 2023-07-01 | M87: 0 | N87: 0 | O87: 0 | P87: 0 | S87: 0 | T87: 0.00 | V87: -11 | W87: -11 | X87: 11 | Y87: 0 | Z87: 0 | AA87: 0 | AC87: 0 | AD87: 0.00 | AE87: 0 | AF87: 0 | AI87: 0
A88: vjktif=r | B88: 1 | C88: Jh | D88: nsosUnz dqekj lqFkkj | E88: RJBI200509033977 | F88: 110041738889 | G88: v/;kid&2 | H88: ysoy | I88: 10 | J88: 0 | K88: 0 | L88: =L71 -> 2023-07-01 | M88: 0 | N88: 0 | O88: 0 | P88: 0 | S88: 0 | T88: 0.00 | V88: =Y88-X88 -> -10 | W88: =IF(R39>=DATE(2017,7,1),CEILING(Y88*3%,10)+V88,V88) -> -10 | X88: 10 | Y88: 0 | Z88: =SUM(W88:X88) -> 0 | AA88: =Z88-Y88 -> 0 | AC88: 0 | AD88: 0.00 | AE88: 0 | AF88: 0 | AI88: 0
A89: vjktif=r | B89: 2 | C89: Jh | D89: euftUnz flag | G89: v/;kid&2 | H89: ysoy | I89: 10 | J89: 0 | K89: =J89*12 -> 0 | L89: 2023-07-01 | M89: =P89*8 -> 0 | N89: =K89+M89 -> 0 | O89: =N89-P89*12 -> 0 | P89: 0 | S89: 0 | T89: 0.00 | V89: =Y89-X89 -> -10 | W89: =IF(R39>=DATE(2017,7,1),CEILING(Y89*3%,10)+V89,V89) -> -10 | X89: =I89 -> 10 | Y89: =J89 -> 0 | Z89: =SUM(W89:X89) -> 0 | AA89: =Z89-Y89 -> 0 | AC89: =J89 -> 0 | AD89: =AC89*3/100 -> 0.00 | AE89: =ROUNDUP(AD89,-1) -> 0 | AF89: =AC89+AE89 -> 0 | AI89: =AF89-J89 -> 0
A90: vjktif=r | B90: 3 | C90: Jherh | D90: jf'e dVkfj;k | G90: v/;kid&2 | H90: ysoy | I90: 10 | J90: 0 | K90: 0 | L90: 2023-07-01 | M90: =P90*8 -> 0 | N90: 0 | O90: =N90-P90*12 -> 0 | P90: 0 | S90: 0 | T90: 0.00 | V90: -10 | W90: =IF(R39>=DATE(2017,7,1),CEILING(Y90*3%,10)+V90,V90) -> -10 | X90: 10 | Y90: 0 | Z90: 0 | AA90: 0 | AC90: 0 | AD90: 0.00 | AE90: 0 | AF90: 0 | AI90: 0
A91: vjktif=r | B91: 4 | C91: Jherh | D91: js[kk jkuh | G91: v/;kid&1 | H91: ysoy | I91: 10 | J91: 0 | K91: =J91*12 -> 0 | L91: 2023-07-01 | M91: =P91*8 -> 0 | N91: =K91+M91 -> 0 | O91: =N91-P91*12 -> 0 | P91: 0 | S91: 0 | T91: 0.00 | V91: =Y91-X91 -> -10 | W91: =IF(R39>=DATE(2017,7,1),CEILING(Y91*3%,10)+V91,V91) -> -10 | X91: =I91 -> 10 | Y91: =J91 -> 0 | Z91: =SUM(W91:X91) -> 0 | AA91: =Z91-Y91 -> 0 | AC91: =J91 -> 0 | AD91: =AC91*3/100 -> 0.00 | AE91: =ROUNDUP(AD91,-1) -> 0 | AF91: =AC91+AE91 -> 0 | AI91: =AF91-J91 -> 0
A92: vjktif=r | B92: 5 | C92: Jherh | D92: lqq"kek jkuh | G92: v/;kid&1 | H92: ysoy | I92: 10 | J92: 0 | K92: 0 | L92: 2023-07-01 | M92: 0 | N92: 0 | O92: 0 | P92: 0 | S92: 0 | T92: 0.00 | V92: =Y92-X92 -> -10 | W92: =IF(R39>=DATE(2017,7,1),CEILING(Y92*3%,10)+V92,V92) -> -10 | X92: 10 | Y92: 0 | Z92: =SUM(W92:X92) -> 0 | AA92: 0 | AC92: 0 | AD92: 0.00 | AE92: 0 | AF92: 0 | AI92: 0
A93: vjktif=r | B93: 6 | G93: v/;kid&1 | H93: ysoy | I93: 10 | J93: 0 | K93: =J93*12 -> 0 | L93: 2023-07-01 | M93: =P93*8 -> 0 | N93: =K93+M93 -> 0 | O93: =N93-P93*12 -> 0 | P93: 0 | S93: 0 | T93: 0.00 | V93: =Y93-X93 -> -10 | W93: =IF(R39>=DATE(2017,7,1),CEILING(Y93*3%,10)+V93,V93) -> -10 | X93: =I93 -> 10 | Y93: =J93 -> 0 | Z93: =SUM(W93:X93) -> 0 | AA93: =Z93-Y93 -> 0 | AC93: =J93 -> 0 | AD93: =AC93*3/100 -> 0.00 | AE93: =ROUNDUP(AD93,-1) -> 0 | AF93: =AC93+AE93 -> 0 | AI93: =AF93-J93 -> 0
A94: vjktif=r | B94: 1 | C94: Jh | D94: iou dqekj xksnkjk | G94: 'kk-f'k{kd | H94: ysoy | I94: 10 | J94: 0 | K94: =J94*12 -> 0 | L94: 2023-07-01 | M94: =P94*8 -> 0 | N94: =K94+M94 -> 0 | O94: =N94-P94*12 -> 0 | P94: 0 | S94: 0 | T94: 0.00 | V94: =Y94-X94 -> -10 | W94: =IF(R39>=DATE(2017,7,1),CEILING(Y94*3%,10)+V94,V94) -> -10 | X94: =I94 -> 10 | Y94: =J94 -> 0 | Z94: =SUM(W94:X94) -> 0 | AA94: =Z94-Y94 -> 0 | AC94: =J94 -> 0 | AD94: =AC94*3/100 -> 0.00 | AE94: =ROUNDUP(AD94,-1) -> 0 | AF94: =AC94+AE94 -> 0 | AI94: =AF94-J94 -> 0
A95: vjktif=r | B95: 1 | G95: dk;kZy; lgk;d | H95: ysoy | I95: 10 | J95: 0 | K95: 0 | L95: 2023-07-01 | M95: 0 | N95: 0 | O95: 0 | P95: 0 | S95: 0 | T95: 0.00 | V95: -10 | W95: =IF(R39>=DATE(2017,7,1),CEILING(Y95*3%,10)+V95,V95) -> -10 | X95: 10 | Y95: 0 | Z95: 0 | AA95: 0 | AC95: 0 | AD95: 0.00 | AE95: 0 | AF95: 0 | AI95: 0
A96: vjktif=r | B96: 1 | C96: Jh | D96: lqfer fxjh | G96: ofj"B fyfid | H96: ysoy | I96: 8 | J96: 0 | K96: 0 | L96: 2023-07-01 | M96: 0 | N96: 0 | O96: 0 | P96: 0 | S96: 0 | T96: 0.00 | V96: -8 | W96: =IF(R39>=DATE(2017,7,1),CEILING(Y96*3%,10)+V96,V96) -> -8 | X96: 8 | Y96: 0 | Z96: 0 | AA96: 0 | AC96: 0 | AD96: 0.00 | AE96: 0 | AF96: 0 | AI96: 0
A97: vjktif=r | B97: 1 | G97: dfu"B fyfid | H97: ysoy | I97: 5 | J97: 0 | K97: 0 | L97: 2023-07-01 | M97: 0 | N97: 0 | O97: 0 | P97: 0 | S97: 0 | T97: 0.00 | V97: -5 | W97: =IF(R39>=DATE(2017,7,1),CEILING(Y97*3%,10)+V97,V97) -> -5 | X97: 5 | Y97: 0 | Z97: 0 | AA97: 0 | AC97: 0 | AD97: 0.00 | AE97: 0 | AF97: 0 | AI97: 0
A98: vjktif=r | B98: 1 | C98: Jherh | D98: y{eh nsoh | G98: lgk;d deZpkjh | H98: ysoy | I98: 1 | J98: 0 | K98: 0 | L98: 2023-07-01 | M98: 0 | N98: 0 | O98: 0 | P98: 0 | S98: 0 | T98: 0.00 | V98: -1 | W98: =IF(R39>=DATE(2017,7,1),CEILING(Y98*3%,10)+V98,V98) -> -1 | X98: 1 | Y98: 0 | Z98: 0 | AA98: 0 | AC98: 0 | AD98: 0.00 | AE98: 0 | AF98: 0 | AI98: 0
A99: vjktif=r | B99: 2 | C99: Jh | D99: cyoUr jk; | G99: lgk;d deZpkjh | H99: ysoy | I99: 1 | J99: 0 | K99: =J99*12 -> 0 | L99: 2023-07-01 | M99: =P99*8 -> 0 | N99: =K99+M99 -> 0 | O99: =N99-P99*12 -> 0 | P99: 0 | S99: 0 | T99: 0.00 | V99: =Y99-X99 -> -1 | W99: =IF(R39>=DATE(2017,7,1),CEILING(Y99*3%,10)+V99,V99) -> -1 | X99: =I99 -> 1 | Y99: =J99 -> 0 | Z99: =SUM(W99:X99) -> 0 | AA99: =Z99-Y99 -> 0 | AC99: =J99 -> 0 | AD99: =AC99*3/100 -> 0.00 | AE99: =ROUNDUP(AD99,-1) -> 0 | AF99: =AC99+AE99 -> 0 | AI99: =AF99-J99 -> 0
A100: vjktif=r | B100: 3 | G100: lgk;d deZpkjh | H100: ysoy | I100: 1 | J100: 0 | K100: 0 | L100: 2023-07-01 | M100: 0 | N100: 0 | O100: 0 | P100: 0 | S100: 0 | T100: 0.00 | V100: -1 | W100: =IF(R39>=DATE(2017,7,1),CEILING(Y100*3%,10)+V100,V100) -> -1 | X100: 1 | Y100: 0 | Z100: 0 | AA100: 0 | AC100: 0 | AD100: 0.00 | AE100: 0 | AF100: 0 | AI100: 0
B102: jktif=r ;ksx | J102: =SUM(J44:J65) -> 99800 | K102: =K44+K45+K46+K47+K48+K49+K50 -> 1197600 | M102: 24000 | N102: =N44+N45+N46+N47+N48+N49+N50 -> 1221600 | O102: 1185600
B103: vjktif=r ;ksx | J103: =SUM(J66:J100) -> 0 | K103: =SUM(K66:K100) -> 0 | M103: =M66+M67+M68+M69+M70+M71+M88+M92+M93+M95+M96+M97+M98+M100+M89+M90+M91+M99+M94 -> 0 | N103: =N66+N67+N68+N69+N70+N71+N88+N89+N90+N91+N92+N93+N94+N95+N96+N97+N98+N99+N100 -> 0 | O103: =O66+O67+O68+O69+O70+O71+O88+O89+O90+O91+O92+O93+O94+O95+O96+O97+O98+O99+O100 -> 0
B104: ;ksx jktif=r$vjktif=r | J104: =J102+J103 -> 99800 | K104: =K102+K103 -> 1197600 | M104: =M102+M103 -> 24000 | N104: =N102+N103 -> 1221600 | O104: =O102+O103 -> 1185600
A105: =$H$12 -> 34% | B105: egaxkbZ HkRrk 34izfr'kr | N105: =ROUND(N104*A105,0) -> 415344 | O105: =ROUND(O104*A105,0) -> 403104 | R105: deZpkjh dh la[;k
A106: =$L$12 -> 9% | B106: edku fdjk;k 9izfr'kr | N106: =ROUND(N104*8%,0) -> 97728 | O106: =ROUND(O104*8%,0) -> 94848
A107: =$J$12 -> 0% | B107: egaxkbZ HkRRkk ,sfj;j¼----izfr'kr½ | O107: =ROUND((O104*A107*F12)/12,0) -> 0
B108: cksul | N108: =P108*R108 -> 54192 | O108: =P108*R108 -> 54192 | P108: 6774 | R108: =$H$9 -> 08
B109: lefiZr vodk'k | N109: =ROUND((N104+N105)/24,0) -> 68206 | O109: =ROUND((O104+O105)/24,0) -> 66196
B110: dSf'k;j HkRrk | N110: =P110*R110*12 -> 0 | O110: =P110*R110*12 -> 0 | P110: 50 | R110: =$H$10 -> 00
B111: /kqykbZ HkRrkk | N111: =P111*R111*12 -> 1800 | O111: =P111*R111*12 -> 1800 | P111: 150 | R111: =H7+H8 -> 01
B112: ¼fQDl is½ vU; HkRRkk | N112: =$J$132 -> 0 | O112: =$I$132 -> 0
B113: dqqy HkRrk ;ksx | N113: =SUM(N105+N106+N107+N108+N109+N112+N110+N111) -> 637270 | O113: =SUM(O105+O106+O107+O108+O109+O112+O111+O110) -> 620140
B114: ;ksx laosru | N114: =N113+N104 -> 1858870 | O114: =O113+O104 -> 1805740
B115: ;k=k HkRrk | N115: =O24 -> 0 | O115: =N24 -> 0
B116: esfMdy HkRrk | N116: =O25 -> 0 | O116: =N25 -> 0
B117: ;ksx ;k=k HkRrk$esfMdy HkRRkk | N117: =N115+N116 -> 0 | O117: =O115+O116 -> 0
B118: egk;ksx | N118: =N114+N117 -> 1858870 | O118: =O114+O117 -> 1805740
C120: Ø-la- | D120: uke dkfeZd | E120: in uke | F120: tUe frfFk | G120: fu;qfä frfFk | H120: ekfld ekuns; | I120: 12 ekg dk ekuns; | J120: vkxkeh o"kZ es 12 ekg dk ekuns;
C121: 1 | D121: 2 | E121: 3 | F121: 4 | G121: 5 | H121: 6 | I121: 7 | J121: 8
C122: 1 | H122: 0 | I122: =H122*12 -> 0 | J122: =H122*12 -> 0
C123: 2 | H123: 0 | I123: =H123*12 -> 0 | J123: 0
C124: 3 | H124: 0 | I124: 0 | J124: 0
C125: 4 | H125: 0 | I125: 0 | J125: 0
C126: 5 | H126: 0 | I126: 0 | J126: 0
C127: 6 | H127: 0 | I127: 0 | J127: 0
C128: 7 | H128: 0 | I128: 0 | J128: 0
C129: 8 | H129: 0 | I129: 0 | J129: 0
C130: 9 | H130: 0 | I130: 0 | J130: 0
C131: 10 | H131: 0 | I131: 0 | J131: 0
E132: TOTAL | I132: =SUM(I122:I131) -> 0 | J132: =SUM(J122:J131) -> 0

Sheet rrr 08
A1: izi= 8 | L1: ctV gSM | M1: =Profile!$C$3 -> 2202-02-109-27-01
A2: fuf'pr O;;ksa ds foLr`r vuqeku vFkkZr~ vf/kdkfj;ksa o deZpkfj;ksa ds osru vuqeku o"kZ ¼vizSy ls ekpZ rd½ | P2: =Profile!$M$36 -> 2023&2024
A3: ¼ctV vuqeku vf/kdkfj;ksa }kjk foHkkxk/;{k dks izLrqr djus gsrq½ ys[kk dk 'kh"kZ % eq[; 'kh"kZ@minh?kZ 'kh"kZ@y?kq'kh"kZ@mi'kh"kZ xzqi 'kh"kZ--------------------vk;kstuk fHkUu@vk;kstuk@dsUnz izofrZr ;kstuk
A4: dk;kZy; %& | D4: =Profile!$D$36 -> 15tSM Jhxaxkuxj | I4: foHkkx dk uke %& | K4: =Profile!$G$2 -> f'k{kk foHkkx | M4: =Profile!$K$36 -> LVsV Q.M | N4: ekax la[;k& | O4: =Profile!$C$11 -> 24 | P4: =Profile!$G$35 -> 2405
B5: ctV Lohd`fr esa fo|ky; dh Ø-la- %& | E5: =Profile!$C$12 -> 25 | F5: dk;kZy; v/;{k MhMhvks uke %& | I5: =Profile!$G$4 -> izHkkr 'kekZ | K5: =Profile!$I$4 -> 1234567890 | N5: j lgL=ksa esa
B6: Øe la[;k | C6: uke | E6: thih,Q @ ,uih,l uEcj | F6: in | G6: in dk Lohd`r osru | I6: =Profile!$J$38 -> ctV dh izkjfEHkd frfFk ;kfu 1ekpZ2022 dks deZpkjh dk osru | J6: igyh ekpZ ls vfUre Qjojh ds fy;s fu/kkZfjr jde | K6: o`f) tks bl vof/k esa gksxh | M6: =Profile!$N$38 -> vkxkeh o"kZ 2023&24 ds fy;s jde ¼dkye 8$10½ | N6: =Profile!$O$38 -> pkyw o"kZ ds fy;s la'kksf/kr vuqeku 2022&23 | O6: fo'ks"k fooj.k ¼osru o`f)½ | P6: deZpkjh vkbZ Mh
G7: =Profile!$H$39 -> xzsM is@ ysoy | K7: frfFk o`f) | L7: jde o`f)
B8: 1 | C8: 2 | E8: 3 | F8: 4 | G8: 5 | H8: 6 | I8: 7 | J8: 8 | K8: 9 | L8: 10 | M8: 11 | N8: 12 | O8: 13 | P8: 14
A9: =Profile!A44 -> jktif=r | B9: =Profile!B44 -> 1 | C9: =Profile!C44 -> Jh | D9: =Profile!D44 -> lqfer fxjh | E9: =Profile!F44 -> 0 | F9: =Profile!G44 -> iz/kkukpk;Z | G9: =Profile!H44 -> ysoy | H9: =Profile!I44 -> 16 | I9: =Profile!J44 -> 40300 | J9: =I9*12 -> 483600 | K9: =Profile!L44 -> 2023-07-01 | L9: =O9*8 -> 9600 | M9: =J9+L9 -> 493200 | N9: =M9-O9*12 -> 478800 | O9: =Profile!P44 -> 1200 | P9: =Profile!E44 -> 0
A10: =Profile!A45 -> jktif=r | B10: =Profile!B45 -> 1 | C10: =Profile!C45 -> 0 | D10: =Profile!D45 -> 0 | E10: =Profile!F45 -> 0 | F10: =Profile!G45 -> O;k[;krk | G10: =Profile!H45 -> ysoy | H10: =Profile!I45 -> 16 | I10: =Profile!J45 -> 59500 | J10: =I10*12 -> 714000 | K10: =Profile!L45 -> 2023-07-01 | L10: =O10*8 -> 14400 | M10: =J10+L10 -> 728400 | N10: =M10-O10*12 -> 706800 | O10: =Profile!P45 -> 1800 | P10: =Profile!E45 -> 0
A11: =Profile!A46 -> jktif=r | B11: =Profile!B46 -> 2 | C11: =Profile!C46 -> 0 | D11: =Profile!D46 -> 0 | E11: =Profile!F46 -> 0 | F11: =Profile!G46 -> O;k[;krk | G11: =Profile!H46 -> ysoy | H11: =Profile!I46 -> 16 | I11: =Profile!J46 -> 0 | J11: 0 | K11: =Profile!L46 -> 2023-07-01 | L11: 0 | M11: 0 | N11: =M11-O11*12 -> 0 | O11: =Profile!P46 -> 0 | P11: =Profile!E46 -> 0
A12: =Profile!A47 -> jktif=r | B12: =Profile!B47 -> 3 | C12: =Profile!C47 -> 0 | D12: =Profile!D47 -> 0 | E12: =Profile!F47 -> 0 | F12: =Profile!G47 -> O;k[;krk | G12: =Profile!H47 -> ysoy | H12: =Profile!I47 -> 16 | I12: =Profile!J47 -> 0 | J12: 0 | K12: =Profile!L47 -> 2023-07-01 | L12: 0 | M12: 0 | N12: 0 | O12: =Profile!P47 -> 0 | P12: =Profile!E47 -> 0
A13: =Profile!A48 -> jktif=r | B13: =Profile!B48 -> 4 | C13: =Profile!C48 -> 0 | D13: =Profile!D48 -> 0 | E13: =Profile!F48 -> 0 | F13: =Profile!G48 -> O;k[;krk | G13: =Profile!H48 -> ysoy | H13: =Profile!I48 -> 16 | I13: =Profile!J48 -> 0 | J13: 0 | K13: =Profile!L48 -> 2023-07-01 | L13: 0 | M13: 0 | N13: 0 | O13: =Profile!P48 -> 0 | P13: =Profile!E48 -> 0
A14: =Profile!A49 -> jktif=r | B14: =Profile!B49 -> 5 | C14: =Profile!C49 -> 0 | D14: =Profile!D49 -> 0 | E14: =Profile!F49 -> 0 | F14: =Profile!G49 -> O;k[;krk | G14: =Profile!H49 -> ysoy | H14: =Profile!I49 -> 6 | I14: =Profile!J49 -> 0 | J14: 0 | K14: =Profile!L49 -> 2023-07-01 | L14: 0 | M14: 0 | N14: 0 | O14: =Profile!P49 -> 0 | P14: =Profile!E49 -> 0
A15: =Profile!A50 -> jktif=r | B15: =Profile!B50 -> 6 | C15: =Profile!C50 -> 0 | D15: =Profile!D50 -> 0 | E15: =Profile!F50 -> 0 | F15: =Profile!G50 -> O;k[;krk | G15: =Profile!H50 -> ysoy | H15: =Profile!I50 -> 7 | I15: =Profile!J50 -> 0 | J15: 0 | K15: =Profile!L50 -> 2023-07-01 | L15: 0 | M15: 0 | N15: 0 | O15: =Profile!P50 -> 0 | P15: =Profile!E50 -> 0
A16: =Profile!A51 -> jktif=r | B16: =Profile!B51 -> 7 | C16: =Profile!C51 -> 0 | D16: =Profile!D51 -> 0 | E16: =Profile!F51 -> 0 | F16: =Profile!G51 -> O;k[;krk | G16: =Profile!H51 -> ysoy | H16: =Profile!I51 -> 8 | I16: =Profile!J51 -> 0 | J16: =I16*12 -> 0 | K16: =Profile!L51 -> 2023-07-01 | L16: =O16*8 -> 0 | M16: =J16+L16 -> 0 | N16: =M16-O16*12 -> 0 | O16: =Profile!P51 -> 0 | P16: =Profile!E51 -> 0
A17: =Profile!A52 -> jktif=r | B17: =Profile!B52 -> 8 | C17: =Profile!C52 -> 0 | D17: =Profile!D52 -> 0 | E17: =Profile!F52 -> 0 | F17: =Profile!G52 -> O;k[;krk | G17: =Profile!H52 -> ysoy | H17: =Profile!I52 -> 9 | I17: =Profile!J52 -> 0 | J17: 0 | K17: =Profile!L52 -> 2023-07-01 | L17: 0 | M17: 0 | N17: 0 | O17: =Profile!P52 -> 0 | P17: =Profile!E52 -> 0
A18: =Profile!A53 -> jktif=r | B18: =Profile!B53 -> 9 | C18: =Profile!C53 -> 0 | D18: =Profile!D53 -> 0 | E18: =Profile!F53 -> 0 | F18: =Profile!G53 -> O;k[;krk | G18: =Profile!H53 -> ysoy | H18: =Profile!I53 -> 10 | I18: =Profile!J53 -> 0 | J18: 0 | K18: =Profile!L53 -> 2023-07-01 | L18: 0 | M18: 0 | N18: 0 | O18: =Profile!P53 -> 0 | P18: =Profile!E53 -> 0
A19: =Profile!A54 -> jktif=r | B19: =Profile!B54 -> 10 | C19: =Profile!C54 -> 0 | D19: =Profile!D54 -> 0 | E19: =Profile!F54 -> 0 | F19: =Profile!G54 -> O;k[;krk | G19: =Profile!H54 -> ysoy | H19: =Profile!I54 -> 11 | I19: =Profile!J54 -> 0 | J19: 0 | K19: =Profile!L54 -> 2023-07-01 | L19: 0 | M19: 0 | N19: 0 | O19: =Profile!P54 -> 0 | P19: =Profile!E54 -> 0
A20: =Profile!A55 -> jktif=r | B20: =Profile!B55 -> 11 | C20: =Profile!C55 -> 0 | D20: =Profile!D55 -> 0 | E20: =Profile!F55 -> 0 | F20: =Profile!G55 -> O;k[;krk | G20: =Profile!H55 -> ysoy | H20: =Profile!I55 -> 12 | I20: =Profile!J55 -> 0 | J20: 0 | K20: =Profile!L55 -> 2023-07-01 | L20: 0 | M20: 0 | N20: 0 | O20: =Profile!P55 -> 0 | P20: =Profile!E55 -> 0
A21: =Profile!A56 -> jktif=r | B21: =Profile!B56 -> 12 | C21: =Profile!C56 -> 0 | D21: =Profile!D56 -> 0 | E21: =Profile!F56 -> 0 | F21: =Profile!G56 -> O;k[;krk | G21: =Profile!H56 -> ysoy | H21: =Profile!I56 -> 13 | I21: =Profile!J56 -> 0 | J21: 0 | K21: =Profile!L56 -> 2023-07-01 | L21: 0 | M21: 0 | N21: 0 | O21: =Profile!P56 -> 0 | P21: =Profile!E56 -> 0
A22: =Profile!A57 -> jktif=r | B22: =Profile!B57 -> 13 | C22: =Profile!C57 -> 0 | D22: =Profile!D57 -> 0 | E22: =Profile!F57 -> 0 | F22: =Profile!G57 -> O;k[;krk | G22: =Profile!H57 -> ysoy | H22: =Profile!I57 -> 14 | I22: =Profile!J57 -> 0 | J22: 0 | K22: =Profile!L57 -> 2023-07-01 | L22: 0 | M22: 0 | N22: 0 | O22: =Profile!P57 -> 0 | P22: =Profile!E57 -> 0
A23: =Profile!A58 -> jktif=r | B23: =Profile!B58 -> 14 | C23: =Profile!C58 -> 0 | D23: =Profile!D58 -> 0 | E23: =Profile!F58 -> 0 | F23: =Profile!G58 -> O;k[;krk | G23: =Profile!H58 -> ysoy | H23: =Profile!I58 -> 15 | I23: =Profile!J58 -> 0 | J23: 0 | K23: =Profile!L58 -> 2023-07-01 | L23: 0 | M23: 0 | N23: 0 | O23: =Profile!P58 -> 0 | P23: =Profile!E58 -> 0
A24: =Profile!A59 -> jktif=r | B24: =Profile!B59 -> 15 | C24: =Profile!C59 -> 0 | D24: =Profile!D59 -> 0 | E24: =Profile!F59 -> 0 | F24: =Profile!G59 -> O;k[;krk | G24: =Profile!H59 -> ysoy | H24: =Profile!I59 -> 16 | I24: =Profile!J59 -> 0 | J24: 0 | K24: =Profile!L59 -> 2023-07-01 | L24: 0 | M24: 0 | N24: 0 | O24: =Profile!P59 -> 0 | P24: =Profile!E59 -> 0
A25: =Profile!A60 -> jktif=r | B25: =Profile!B60 -> 16 | C25: =Profile!C60 -> 0 | D25: =Profile!D60 -> 0 | E25: =Profile!F60 -> 0 | F25: =Profile!G60 -> O;k[;krk | G25: =Profile!H60 -> ysoy | H25: =Profile!I60 -> 17 | I25: =Profile!J60 -> 0 | J25: 0 | K25: =Profile!L60 -> 2023-07-01 | L25: 0 | M25: 0 | N25: 0 | O25: =Profile!P60 -> 0 | P25: =Profile!E60 -> 0
A26: =Profile!A61 -> jktif=r | B26: =Profile!B61 -> 17 | C26: =Profile!C61 -> 0 | D26: =Profile!D61 -> 0 | E26: =Profile!F61 -> 0 | F26: =Profile!G61 -> O;k[;krk | G26: =Profile!H61 -> ysoy | H26: =Profile!I61 -> 18 | I26: =Profile!J61 -> 0 | J26: 0 | K26: =Profile!L61 -> 2023-07-01 | L26: 0 | M26: 0 | N26: 0 | O26: =Profile!P61 -> 0 | P26: =Profile!E61 -> 0
A27: =Profile!A62 -> jktif=r | B27: =Profile!B62 -> 18 | C27: =Profile!C62 -> 0 | D27: =Profile!D62 -> 0 | E27: =Profile!F62 -> 0 | F27: =Profile!G62 -> O;k[;krk | G27: =Profile!H62 -> ysoy | H27: =Profile!I62 -> 19 | I27: =Profile!J62 -> 0 | J27: 0 | K27: =Profile!L62 -> 2023-07-01 | L27: 0 | M27: 0 | N27: 0 | O27: =Profile!P62 -> 0 | P27: =Profile!E62 -> 0
A28: =Profile!A63 -> jktif=r | B28: =Profile!B63 -> 19 | C28: =Profile!C63 -> 0 | D28: =Profile!D63 -> 0 | E28: =Profile!F63 -> 0 | F28: =Profile!G63 -> O;k[;krk | G28: =Profile!H63 -> ysoy | H28: =Profile!I63 -> 20 | I28: =Profile!J63 -> 0 | J28: 0 | K28: =Profile!L63 -> 2023-07-01 | L28: 0 | M28: 0 | N28: 0 | O28: =Profile!P63 -> 0 | P28: =Profile!E63 -> 0
A29: =Profile!A64 -> jktif=r | B29: =Profile!B64 -> 20 | C29: =Profile!C64 -> 0 | D29: =Profile!D64 -> 0 | E29: =Profile!F64 -> 0 | F29: =Profile!G64 -> O;k[;krk | G29: =Profile!H64 -> ysoy | H29: =Profile!I64 -> 21 | I29: =Profile!J64 -> 0 | J29: 0 | K29: =Profile!L64 -> 2023-07-01 | L29: 0 | M29: 0 | N29: 0 | O29: =Profile!P64 -> 0 | P29: =Profile!E64 -> 0
A30: =Profile!A65 -> jktif=r | B30: =Profile!B65 -> 21 | C30: =Profile!C65 -> 0 | D30: =Profile!D65 -> 0 | E30: =Profile!F65 -> 0 | F30: =Profile!G65 -> O;k[;krk | G30: =Profile!H65 -> ysoy | H30: =Profile!I65 -> 22 | I30: =Profile!J65 -> 0 | J30: 0 | K30: =Profile!L65 -> 2023-07-01 | L30: 0 | M30: 0 | N30: 0 | O30: =Profile!P65 -> 0 | P30: =Profile!E65 -> 0
A31: =Profile!A66 -> vjktif=r | B31: =Profile!B66 -> 1 | C31: =Profile!C66 -> Jherh | D31: =Profile!D66 -> eUtq ukxiky | E31: =Profile!F66 -> 110061722142 | F31: =Profile!G66 -> ofj"B v/;kid | G31: =Profile!H66 -> ysoy | H31: =Profile!I66 -> 11 | I31: =Profile!J66 -> 0 | J31: 0 | K31: =Profile!L66 -> 2023-07-01 | L31: 0 | M31: 0 | N31: 0 | O31: =Profile!P66 -> 0 | P31: =Profile!E66 -> RJGA200535013285
A32: =Profile!A67 -> vjktif=r | B32: =Profile!B67 -> 2 | C32: =Profile!C67 -> Jherh | D32: =Profile!D67 -> dkS'kY;k | E32: =Profile!F67 -> 110191483960 | F32: =Profile!G67 -> ofj"B v/;kid | G32: =Profile!H67 -> ysoy | H32: =Profile!I67 -> 11 | I32: =Profile!J67 -> 0 | J32: =I32*12 -> 0 | K32: =Profile!L67 -> 2023-07-01 | L32: 0 | M32: 0 | N32: 0 | O32: =Profile!P67 -> 0 | P32: =Profile!E67 -> RJGA201435027389
A33: =Profile!A68 -> vjktif=r | B33: =Profile!B68 -> 3 | C33: =Profile!C68 -> 0 | D33: =Profile!D68 -> 0 | E33: =Profile!F68 -> 0 | F33: =Profile!G68 -> ofj"B v/;kid | G33: =Profile!H68 -> ysoy | H33: =Profile!I68 -> 11 | I33: =Profile!J68 -> 0 | J33: 0 | K33: =Profile!L68 -> 2023-07-01 | L33: 0 | M33: 0 | N33: 0 | O33: =Profile!P68 -> 0 | P33: =Profile!E68 -> 0
A34: =Profile!A69 -> vjktif=r | B34: =Profile!B69 -> 4 | C34: =Profile!C69 -> 0 | D34: =Profile!D69 -> 0 | E34: =Profile!F69 -> 0 | F34: =Profile!G69 -> ofj"B v/;kid | G34: =Profile!H69 -> ysoy | H34: =Profile!I69 -> 11 | I34: =Profile!J69 -> 0 | J34: 0 | K34: =Profile!L69 -> 2023-07-01 | L34: 0 | M34: 0 | N34: 0 | O34: =Profile!P69 -> 0 | P34: =Profile!E69 -> 0
A35: =Profile!A70 -> vjktif=r | B35: =Profile!B70 -> 5 | C35: =Profile!C70 -> 0 | D35: =Profile!D70 -> 0 | E35: =Profile!F70 -> 0 | F35: =Profile!G70 -> ofj"B v/;kid | G35: =Profile!H70 -> ysoy | H35: =Profile!I70 -> 11 | I35: =Profile!J70 -> 0 | J35: 0 | K35: =Profile!L70 -> 2023-07-01 | L35: 0 | M35: 0 | N35: 0 | O35: =Profile!P70 -> 0 | P35: =Profile!E70 -> 0
A36: =Profile!A71 -> vjktif=r | B36: =Profile!B71 -> 6 | C36: =Profile!C71 -> 0 | D36: =Profile!D71 -> 0 | E36: =Profile!F71 -> 0 | F36: =Profile!G71 -> ofj"B v/;kid | G36: =Profile!H71 -> ysoy | H36: =Profile!I71 -> 11 | I36: =Profile!J71 -> 0 | J36: =I36*12 -> 0 | K36: =Profile!L71 -> 2023-07-01 | L36: =O36*8 -> 0 | M36: =J36+L36 -> 0 | N36: =M36-O36*12 -> 0 | O36: =Profile!P71 -> 0 | P36: =Profile!E71 -> 0
A37: =Profile!A72 -> vjktif=r | B37: =Profile!B72 -> 7 | C37: =Profile!C72 -> 0 | D37: =Profile!D72 -> 0 | E37: =Profile!F72 -> 0 | F37: =Profile!G72 -> ofj"B v/;kid | G37: =Profile!H72 -> ysoy | H37: =Profile!I72 -> 11 | I37: =Profile!J72 -> 0 | J37: =I37*12 -> 0 | K37: =Profile!L72 -> 2023-07-01 | L37: =O37*8 -> 0 | M37: =J37+L37 -> 0 | N37: =M37-O37*12 -> 0 | O37: =Profile!P72 -> 0 | P37: =Profile!E72 -> 0
A38: =Profile!A73 -> vjktif=r | B38: =Profile!B73 -> 8 | C38: =Profile!C73 -> 0 | D38: =Profile!D73 -> 0 | E38: =Profile!F73 -> 0 | F38: =Profile!G73 -> ofj"B v/;kid | G38: =Profile!H73 -> ysoy | H38: =Profile!I73 -> 11 | I38: =Profile!J73 -> 0 | J38: 0 | K38: =Profile!L73 -> 2023-07-01 | L38: 0 | M38: 0 | N38: 0 | O38: =Profile!P73 -> 0 | P38: =Profile!E73 -> 0
A39: =Profile!A74 -> vjktif=r | B39: =Profile!B74 -> 9 | C39: =Profile!C74 -> 0 | D39: =Profile!D74 -> 0 | E39: =Profile!F74 -> 0 | F39: =Profile!G74 -> ofj"B v/;kid | G39: =Profile!H74 -> ysoy | H39: =Profile!I74 -> 11 | I39: =Profile!J74 -> 0 | J39: 0 | K39: =Profile!L74 -> 2023-07-01 | L39: 0 | M39: 0 | N39: 0 | O39: =Profile!P74 -> 0 | P39: =Profile!E74 -> 0
A40: =Profile!A75 -> vjktif=r | B40: =Profile!B75 -> 10 | C40: =Profile!C75 -> 0 | D40: =Profile!D75 -> 0 | E40: =Profile!F75 -> 0 | F40: =Profile!G75 -> ofj"B v/;kid | G40: =Profile!H75 -> ysoy | H40: =Profile!I75 -> 11 | I40: =Profile!J75 -> 0 | J40: 0 | K40: =Profile!L75 -> 2023-07-01 | L40: 0 | M40: 0 | N40: 0 | O40: =Profile!P75 -> 0 | P40: =Profile!E75 -> 0
A41: =Profile!A76 -> vjktif=r | B41: =Profile!B76 -> 11 | C41: =Profile!C76 -> 0 | D41: =Profile!D76 -> 0 | E41: =Profile!F76 -> 0 | F41: =Profile!G76 -> ofj"B v/;kid | G41: =Profile!H76 -> ysoy | H41: =Profile!I76 -> 11 | I41: =Profile!J76 -> 0 | J41: 0 | K41: =Profile!L76 -> 2023-07-01 | L41: 0 | M41: 0 | N41: 0 | O41: =Profile!P76 -> 0 | P41: =Profile!E76 -> 0
A42: =Profile!A77 -> vjktif=r | B42: =Profile!B77 -> 12 | C42: =Profile!C77 -> 0 | D42: =Profile!D77 -> 0 | E42: =Profile!F77 -> 0 | F42: =Profile!G77 -> ofj"B v/;kid | G42: =Profile!H77 -> ysoy | H42: =Profile!I77 -> 11 | I42: =Profile!J77 -> 0 | J42: 0 | K42: =Profile!L77 -> 2023-07-01 | L42: 0 | M42: 0 | N42: 0 | O42: =Profile!P77 -> 0 | P42: =Profile!E77 -> 0
A43: =Profile!A78 -> vjktif=r | B43: =Profile!B78 -> 13 | C43: =Profile!C78 -> 0 | D43: =Profile!D78 -> 0 | E43: =Profile!F78 -> 0 | F43: =Profile!G78 -> ofj"B v/;kid | G43: =Profile!H78 -> ysoy | H43: =Profile!I78 -> 11 | I43: =Profile!J78 -> 0 | J43: 0 | K43: =Profile!L78 -> 2023-07-01 | L43: 0 | M43: 0 | N43: 0 | O43: =Profile!P78 -> 0 | P43: =Profile!E78 -> 0
A44: =Profile!A79 -> vjktif=r | B44: =Profile!B79 -> 14 | C44: =Profile!C79 -> 0 | D44: =Profile!D79 -> 0 | E44: =Profile!F79 -> 0 | F44: =Profile!G79 -> ofj"B v/;kid | G44: =Profile!H79 -> ysoy | H44: =Profile!I79 -> 11 | I44: =Profile!J79 -> 0 | J44: 0 | K44: =Profile!L79 -> 2023-07-01 | L44: 0 | M44: 0 | N44: 0 | O44: =Profile!P79 -> 0 | P44: =Profile!E79 -> 0
A45: =Profile!A80 -> vjktif=r | B45: =Profile!B80 -> 15 | C45: =Profile!C80 -> 0 | D45: =Profile!D80 -> 0 | E45: =Profile!F80 -> 0 | F45: =Profile!G80 -> ofj"B v/;kid | G45: =Profile!H80 -> ysoy | H45: =Profile!I80 -> 11 | I45: =Profile!J80 -> 0 | J45: 0 | K45: =Profile!L80 -> 2023-07-01 | L45: 0 | M45: 0 | N45: 0 | O45: =Profile!P80 -> 0 | P45: =Profile!E80 -> 0
A46: =Profile!A81 -> vjktif=r | B46: =Profile!B81 -> 16 | C46: =Profile!C81 -> 0 | D46: =Profile!D81 -> 0 | E46: =Profile!F81 -> 0 | F46: =Profile!G81 -> ofj"B v/;kid | G46: =Profile!H81 -> ysoy | H46: =Profile!I81 -> 11 | I46: =Profile!J81 -> 0 | J46: 0 | K46: =Profile!L81 -> 2023-07-01 | L46: 0 | M46: 0 | N46: 0 | O46: =Profile!P81 -> 0 | P46: =Profile!E81 -> 0
A47: =Profile!A82 -> vjktif=r | B47: =Profile!B82 -> 17 | C47: =Profile!C82 -> 0 | D47: =Profile!D82 -> 0 | E47: =Profile!F82 -> 0 | F47: =Profile!G82 -> ofj"B v/;kid | G47: =Profile!H82 -> ysoy | H47: =Profile!I82 -> 11 | I47: =Profile!J82 -> 0 | J47: 0 | K47: =Profile!L82 -> 2023-07-01 | L47: 0 | M47: 0 | N47: 0 | O47: =Profile!P82 -> 0 | P47: =Profile!E82 -> 0
A48: =Profile!A83 -> vjktif=r | B48: =Profile!B83 -> 18 | C48: =Profile!C83 -> 0 | D48: =Profile!D83 -> 0 | E48: =Profile!F83 -> 0 | F48: =Profile!G83 -> ofj"B v/;kid | G48: =Profile!H83 -> ysoy | H48: =Profile!I83 -> 11 | I48: =Profile!J83 -> 0 | J48: 0 | K48: =Profile!L83 -> 2023-07-01 | L48: 0 | M48: 0 | N48: 0 | O48: =Profile!P83 -> 0 | P48: =Profile!E83 -> 0
A49: =Profile!A84 -> vjktif=r | B49: =Profile!B84 -> 19 | C49: =Profile!C84 -> 0 | D49: =Profile!D84 -> 0 | E49: =Profile!F84 -> 0 | F49: =Profile!G84 -> ofj"B v/;kid | G49: =Profile!H84 -> ysoy | H49: =Profile!I84 -> 11 | I49: =Profile!J84 -> 0 | J49: 0 | K49: =Profile!L84 -> 2023-07-01 | L49: 0 | M49: 0 | N49: 0 | O49: =Profile!P84 -> 0 | P49: =Profile!E84 -> 0
A50: =Profile!A85 -> vjktif=r | B50: =Profile!B85 -> 20 | C50: =Profile!C85 -> 0 | D50: =Profile!D85 -> 0 | E50: =Profile!F85 -> 0 | F50: =Profile!G85 -> ofj"B v/;kid | G50: =Profile!H85 -> ysoy | H50: =Profile!I85 -> 11 | I50: =Profile!J85 -> 0 | J50: 0 | K50: =Profile!L85 -> 2023-07-01 | L50: 0 | M50: 0 | N50: 0 | O50: =Profile!P85 -> 0 | P50: =Profile!E85 -> 0
A51: =Profile!A86 -> vjktif=r | B51: =Profile!B86 -> 21 | C51: =Profile!C86 -> 0 | D51: =Profile!D86 -> 0 | E51: =Profile!F86 -> 0 | F51: =Profile!G86 -> ofj"B v/;kid | G51: =Profile!H86 -> ysoy | H51: =Profile!I86 -> 11 | I51: =Profile!J86 -> 0 | J51: 0 | K51: =Profile!L86 -> 2023-07-01 | L51: 0 | M51: 0 | N51: 0 | O51: =Profile!P86 -> 0 | P51: =Profile!E86 -> 0
A52: =Profile!A87 -> vjktif=r | B52: =Profile!B87 -> 22 | C52: =Profile!C87 -> 0 | D52: =Profile!D87 -> 0 | E52: =Profile!F87 -> 0 | F52: =Profile!G87 -> ofj"B v/;kid | G52: =Profile!H87 -> ysoy | H52: =Profile!I87 -> 11 | I52: =Profile!J87 -> 0 | J52: 0 | K52: =Profile!L87 -> 2023-07-01 | L52: 0 | M52: 0 | N52: 0 | O52: =Profile!P87 -> 0 | P52: =Profile!E87 -> 0
A53: =Profile!A88 -> vjktif=r | B53: =Profile!B88 -> 1 | C53: =Profile!C88 -> Jh | D53: =Profile!D88 -> nsosUnz dqekj lqFkkj | E53: =Profile!F88 -> 110041738889 | F53: =Profile!G88 -> v/;kid&2 | G53: =Profile!H88 -> ysoy | H53: =Profile!I88 -> 10 | I53: =Profile!J88 -> 0 | J53: 0 | K53: =Profile!L88 -> 2023-07-01 | L53: 0 | M53: 0 | N53: 0 | O53: =Profile!P88 -> 0 | P53: =Profile!E88 -> RJBI200509033977
A54: =Profile!A89 -> vjktif=r | B54: =Profile!B89 -> 2 | C54: =Profile!C89 -> Jh | D54: =Profile!D89 -> euftUnz flag | E54: =Profile!F89 -> 0 | F54: =Profile!G89 -> v/;kid&2 | G54: =Profile!H89 -> ysoy | H54: =Profile!I89 -> 10 | I54: =Profile!J89 -> 0 | J54: 0 | K54: =Profile!L89 -> 2023-07-01 | L54: 0 | M54: 0 | N54: 0 | O54: =Profile!P89 -> 0 | P54: =Profile!E89 -> 0
A55: =Profile!A90 -> vjktif=r | B55: =Profile!B90 -> 3 | C55: =Profile!C90 -> Jherh | D55: =Profile!D90 -> jf'e dVkfj;k | E55: =Profile!F90 -> 0 | F55: =Profile!G90 -> v/;kid&2 | G55: =Profile!H90 -> ysoy | H55: =Profile!I90 -> 10 | I55: =Profile!J90 -> 0 | J55: 0 | K55: =Profile!L90 -> 2023-07-01 | L55: 0 | M55: 0 | N55: =M55-O55*12 -> 0 | O55: =Profile!P90 -> 0 | P55: =Profile!E90 -> 0
A56: =Profile!A91 -> vjktif=r | B56: =Profile!B91 -> 4 | C56: =Profile!C91 -> Jherh | D56: =Profile!D91 -> js[kk jkuh | E56: =Profile!F91 -> 0 | F56: =Profile!G91 -> v/;kid&1 | G56: =Profile!H91 -> ysoy | H56: =Profile!I91 -> 10 | I56: =Profile!J91 -> 0 | J56: 0 | K56: =Profile!L91 -> 2023-07-01 | L56: 0 | M56: 0 | N56: 0 | O56: =Profile!P91 -> 0 | P56: =Profile!E91 -> 0
A57: =Profile!A92 -> vjktif=r | B57: =Profile!B92 -> 5 | C57: =Profile!C92 -> Jherh | D57: =Profile!D92 -> lqq"kek jkuh | E57: =Profile!F92 -> 0 | F57: =Profile!G92 -> v/;kid&1 | G57: =Profile!H92 -> ysoy | H57: =Profile!I92 -> 10 | I57: =Profile!J92 -> 0 | J57: 0 | K57: =Profile!L92 -> 2023-07-01 | L57: 0 | M57: 0 | N57: 0 | O57: =Profile!P92 -> 0 | P57: =Profile!E92 -> 0
A58: =Profile!A93 -> vjktif=r | B58: =Profile!B93 -> 6 | C58: =Profile!C93 -> 0 | D58: =Profile!D93 -> 0 | E58: =Profile!F93 -> 0 | F58: =Profile!G93 -> v/;kid&1 | G58: =Profile!H93 -> ysoy | H58: =Profile!I93 -> 10 | I58: =Profile!J93 -> 0 | J58: 0 | K58: =Profile!L93 -> 2023-07-01 | L58: 0 | M58: 0 | N58: 0 | O58: =Profile!P93 -> 0 | P58: =Profile!E93 -> 0
A59: =Profile!A94 -> vjktif=r | B59: =Profile!B94 -> 1 | C59: =Profile!C94 -> Jh | D59: =Profile!D94 -> iou dqekj xksnkjk | E59: =Profile!F94 -> 0 | F59: =Profile!G94 -> 'kk-f'k{kd | G59: =Profile!H94 -> ysoy | H59: =Profile!I94 -> 10 | I59: =Profile!J94 -> 0 | J59: 0 | K59: =Profile!L94 -> 2023-07-01 | L59: 0 | M59: 0 | N59: 0 | O59: =Profile!P94 -> 0 | P59: =Profile!E94 -> 0
A60: =Profile!A95 -> vjktif=r | B60: =Profile!B95 -> 1 | C60: =Profile!C95 -> 0 | D60: =Profile!D95 -> 0 | E60: =Profile!F95 -> 0 | F60: =Profile!G95 -> dk;kZy; lgk;d | G60: =Profile!H95 -> ysoy | H60: =Profile!I95 -> 10 | I60: =Profile!J95 -> 0 | J60: 0 | K60: =Profile!L95 -> 2023-07-01 | L60: 0 | M60: 0 | N60: 0 | O60: =Profile!P95 -> 0 | P60: =Profile!E95 -> 0
A61: =Profile!A96 -> vjktif=r | B61: =Profile!B96 -> 1 | C61: =Profile!C96 -> Jh | D61: =Profile!D96 -> lqfer fxjh | E61: =Profile!F96 -> 0 | F61: =Profile!G96 -> ofj"B fyfid | G61: =Profile!H96 -> ysoy | H61: =Profile!I96 -> 8 | I61: =Profile!J96 -> 0 | J61: 0 | K61: =Profile!L96 -> 2023-07-01 | L61: 0 | M61: 0 | N61: 0 | O61: =Profile!P96 -> 0 | P61: =Profile!E96 -> 0
A62: =Profile!A97 -> vjktif=r | B62: =Profile!B97 -> 1 | C62: =Profile!C97 -> 0 | D62: =Profile!D97 -> 0 | E62: =Profile!F97 -> 0 | F62: =Profile!G97 -> dfu"B fyfid | G62: =Profile!H97 -> ysoy | H62: =Profile!I97 -> 5 | I62: =Profile!J97 -> 0 | J62: 0 | K62: =Profile!L97 -> 2023-07-01 | L62: 0 | M62: 0 | N62: 0 | O62: =Profile!P97 -> 0 | P62: =Profile!E97 -> 0
A63: =Profile!A98 -> vjktif=r | B63: =Profile!B98 -> 1 | C63: =Profile!C98 -> Jherh | D63: =Profile!D98 -> y{eh nsoh | E63: =Profile!F98 -> 0 | F63: =Profile!G98 -> lgk;d deZpkjh | G63: =Profile!H98 -> ysoy | H63: =Profile!I98 -> 1 | I63: =Profile!J98 -> 0 | J63: 0 | K63: =Profile!L98 -> 2023-07-01 | L63: 0 | M63: 0 | N63: 0 | O63: =Profile!P98 -> 0 | P63: =Profile!E98 -> 0
A64: =Profile!A99 -> vjktif=r | B64: =Profile!B99 -> 2 | C64: =Profile!C99 -> Jh | D64: =Profile!D99 -> cyoUr jk; | E64: =Profile!F99 -> 0 | F64: =Profile!G99 -> lgk;d deZpkjh | G64: =Profile!H99 -> ysoy | H64: =Profile!I99 -> 1 | I64: =Profile!J99 -> 0 | J64: 0 | K64: =Profile!L99 -> 2023-07-01 | L64: 0 | M64: 0 | N64: 0 | O64: =Profile!P99 -> 0 | P64: =Profile!E99 -> 0
A65: =Profile!A100 -> vjktif=r | B65: =Profile!B100 -> 3 | C65: =Profile!C100 -> 0 | D65: =Profile!D100 -> 0 | E65: =Profile!F100 -> 0 | F65: =Profile!G100 -> lgk;d deZpkjh | G65: =Profile!H100 -> ysoy | H65: =Profile!I100 -> 1 | I65: =Profile!J100 -> 0 | J65: 0 | K65: =Profile!L100 -> 2023-07-01 | L65: 0 | M65: 0 | N65: 0 | O65: =Profile!P100 -> 0 | P65: =Profile!E100 -> 
B67: jktif=r ;ksx | I67: =Profile!J102 -> 99800 | J67: =Profile!K102 -> 1197600 | L67: =Profile!M102 -> 24000 | M67: =Profile!N102 -> 1221600 | N67: =Profile!O102 -> 1185600
B68: vjktif=r ;ksx | I68: =Profile!J103 -> 0 | J68: =Profile!K103 -> 0 | L68: =Profile!M103 -> 0 | M68: =Profile!N103 -> 0 | N68: =Profile!O103 -> 0
B69: ;ksx jktif=r$vjktif=r | I69: =Profile!J104 -> 99800 | J69: =Profile!K104 -> 1197600 | L69: =Profile!M104 -> 24000 | M69: =Profile!N104 -> 1221600 | N69: =Profile!O104 -> 1185600
B70: =Profile!$B$105 -> egaxkbZ HkRrk 34izfr'kr | M70: =Profile!N105 -> 415344 | N70: =Profile!O105 -> 403104
B71: =Profile!$B$106 -> edku fdjk;k 9izfr'kr | M71: =Profile!N106 -> 97728 | N71: =Profile!O106 -> 94848
B72: =Profile!$B$107 -> egaxkbZ HkRRkk ,sfj;j¼----izfr'kr½ | M72: =Profile!N107 -> 0 | N72: =Profile!O107 -> 0
B73: =Profile!$B$108 -> cksul | M73: =Profile!N108 -> 54192 | N73: =Profile!O108 -> 54192
B74: =Profile!B109 -> lefiZr vodk'k | M74: =Profile!N109 -> 68206 | N74: =Profile!O109 -> 66196
B75: =Profile!B110 -> dSf'k;j HkRrk | M75: =Profile!N110 -> 0 | N75: =Profile!O110 -> 0
B76: =Profile!B111 -> /kqykbZ HkRrkk | M76: =Profile!N111 -> 1800 | N76: =Profile!O111 -> 1800
B77: =Profile!B112 -> ¼fQDl is½ vU; HkRRkk | M77: =Profile!N112 -> 0 | N77: =Profile!O112 -> 0
B78: =Profile!$B$113 -> dqqy HkRrk ;ksx | M78: =Profile!N113 -> 637270 | N78: =Profile!O113 -> 620140
B79: =Profile!B114 -> ;ksx laosru | M79: =Profile!N114 -> 1858870 | N79: =Profile!O114 -> 1805740
B80: =Profile!B115 -> ;k=k HkRrk | M80: =Profile!N115 -> 0 | N80: =Profile!O115 -> 0
B81: =Profile!B116 -> esfMdy HkRrk | M81: =Profile!N116 -> 0 | N81: =Profile!O116 -> 0
B82: =Profile!B117 -> ;ksx ;k=k HkRrk$esfMdy HkRRkk | M82: =Profile!N117 -> 0 | N82: =Profile!O117 -> 0
B83: =Profile!B118 -> egk;ksx | M83: =Profile!N118 -> 1858870 | N83: =Profile!O118 -> 1805740
D85: izekf.kr fd;k tkrk gS fd mi;qZDr lwpuk dh esjs }kjk O;fDrxr :Ik ls tkap dj yh xbZ gS vksj bls lgh ik;k x;k gSA
M87: =Profile!A3 -> ihbZbZvks 10tSM ,oa iz/kkukpk;Z
I88: rS;kj drkZ %& | J88: =Profile!G6 -> lqfer fxjh | M88: =Profile!A4 -> jktdh; mPp ek/;fed fo|ky;
J89: =Profile!$I$6 -> 1234567890 | M89: =Profile!A5 -> 15tSM Jhxaxkuxj
M90: =Profile!$F$4 -> 2405

Sheet rrr 09
A1: izi= 9 | M1: ctV gSM | N1: =Profile!$C$3 -> 2202-02-109-27-01
A2: fuf'pr O;;ksa ds foLr`r vuqeku vFkkZr~ vf/kdkfj;ksa o deZpkfj;ksa ds osru vuqeku o"kZ ¼vizSy ls ekpZ rd½ | S2: =Profile!$K$36 -> LVsV Q.M
A3: ¼ctV vuqeku vf/kdkfj;ksa }kjk foHkkxk/;{k dks izLrqr djus gsrq½ ys[kk dk 'kh"kZ % eq[; 'kh"kZ@minh?kZ 'kh"kZ@y?kq'kh"kZ@mi'kh"kZ xzqi 'kh"kZ--------------------vk;kstuk fHkUu@vk;kstuk@dsUnz izofrZr ;kstuk
A4: dk;kZy; & | E4: =Profile!$D$36 -> 15tSM Jhxaxkuxj | L4: foHkkx dk uke %& | O4: =Profile!$G$2 -> f'k{kk foHkkx | S4: =Profile!$G$35 -> 2405
B5: ctV Lohd`fr esa fo|ky; dh Ø-la- %& | F5: =Profile!$C$12 -> 25 | H5: dk;kZy; v/;{k MhMhvks uke %& | K5: =Profile!$G$4 -> izHkkr 'kekZ | N5: =Profile!$I$4 -> 1234567890 | S5: j lgL=ksa esa
A6: Øe l[;k | B6: ys[kk 'kh"kZd ¼foLr`r 'kh"kZ½ | C6: nrer@ ize`r | D6: okLrfod O;; vkadM+s¼xr iwoZ rhu o"kksZ ds½ | G6: vk; O;; ds vuqeku ckcr~ pkyw o"kZ | H6: okLrfod O;; vkadM+s | K6: vxLr ls ekpZ rd dk laHkkfor O;; ¼pkyw o"kZ½ | L6: la'kksf/kr vuqeku 2022&23 ¼pkyw o"kZ½ 9$11 | M6: vk; O;; ds vuqeku ckcr 2023&24¼vkxkeh o"kZ½ | P6: o`f)¼$½ ;k deh¼&½ | S6: uohu vkbVe | T6: fo'ks"k fooj.k
D7: =Profile!F22 -> 2019-20 | E7: =Profile!G22 -> 2020-21 | F7: =Profile!H22 -> 21&22 esa ekpZ2022 dk th-,-19 | H7: vxLr ls ekpZ rd ¼xr o"kZ½ | I7: viszy ls tqykbZ rd ¼pkyw o"kZ½ | J7: dkye 8 o 9 dk ;ksx | M7: dfeVsM | N7: uohu | O7: dqy ¼13+14½ | P7: 7 vkSj 12 esa | Q7: 10 vkSj 12 esa | R7: 12 vkSj 15 esa | S7: gka @ ugha
A8: 1 | B8: 2 | C8: 3 | D8: 4 | E8: 5 | F8: 6 | G8: 7 | H8: 8 | I8: 9 | J8: 10 | K8: 11 | L8: 12 | M8: 13 | N8: 14 | O8: 15 | P8: 16 | Q8: 17 | R8: 18 | S8: 19 | T8: 20
B9: ;ksx jk$vjk | L9: ='rrr 08'!$N$69 -> 1185600 | M9: ='rrr 08'!$M$69 -> 1221600 | O9: =M9+N9 -> 1221600
A10: =Profile!A105 -> 34% | B10: =Profile!$B$105 -> egaxkbZ HkRrk 34izfr'kr | L10: ='rrr 08'!N70 -> 403104 | M10: ='rrr 08'!M70 -> 415344 | O10: =M10+N10 -> 415344
A11: =Profile!A106 -> 9% | B11: edku fdjk;k | L11: ='rrr 08'!N71 -> 94848 | M11: ='rrr 08'!M71 -> 97728 | O11: 97728
A12: =Profile!A107 -> 0% | B12: =Profile!$B$107 -> egaxkbZ HkRRkk ,sfj;j¼----izfr'kr½ | L12: ='rrr 08'!N72 -> 0 | M12: ='rrr 08'!M72 -> 0 | O12: 0
B13: cksul | L13: ='rrr 08'!N73 -> 54192 | M13: ='rrr 08'!M73 -> 54192 | O13: 54192
B14: lefiZr vodk'k | L14: ='rrr 08'!N74 -> 66196 | M14: ='rrr 08'!M74 -> 68206 | O14: 68206
B15: dSf'k;j HkRrk | L15: ='rrr 08'!N75 -> 0 | M15: ='rrr 08'!M75 -> 0 | O15: 0
B16: o`f) HkRrk | L16: ='rrr 08'!N76 -> 1800 | M16: ='rrr 08'!M76 -> 1800 | O16: 1800
B17: vU; Hkrs | L17: ='rrr 08'!$N$77 -> 0 | M17: ='rrr 08'!$M$77 -> 0 | O17: 0
B18: ;ksx HkRrs | L18: ='rrr 08'!N78 -> 620140 | M18: ='rrr 08'!M78 -> 637270 | O18: 637270
B19: ;ksx laosru | D19: =Profile!F23 -> 5555511 | E19: =Profile!G23 -> 6303330 | F19: =Profile!H23 -> 7837900 | G19: =Profile!$C$23 -> 2500000 | H19: =Profile!P23 -> 5559492 | I19: =Profile!Q23 -> 1500000 | J19: =H19+I19 -> 7059492 | K19: =L19-I19 -> 305740 | L19: ='rrr 08'!N79 -> 1805740 | M19: ='rrr 08'!M79 -> 1858870 | O19: 1858870
B20: ;k=k HkRrk | D20: =Profile!F24 -> 0 | E20: =Profile!G24 -> 30000 | F20: =Profile!H24 -> 22910 | G20: =Profile!C24 -> 0 | H20: =Profile!P24 -> 22910 | I20: =Profile!Q24 -> 0 | J20: =H20+I20 -> 22910 | K20: =L20-I20 -> 0 | L20: ='rrr 08'!N80 -> 0 | M20: ='rrr 08'!M80 -> 0 | O20: 0
B21: esfMdy HkRrk | D21: =Profile!F25 -> 0 | E21: =Profile!G25 -> 0 | F21: =Profile!H25 -> 0 | G21: =Profile!C25 -> 0 | H21: =Profile!P25 -> 0 | I21: =Profile!Q25 -> 0 | J21: 0 | K21: =L21-I21 -> 0 | L21: ='rrr 08'!N81 -> 0 | M21: ='rrr 08'!M81 -> 0 | O21: 0
B22: ;ksx ;k=k esfMdy | D22: =D20+D21 -> 0 | E22: =E20+E21 -> 30000 | F22: 22910 | G22: =G20+G21 -> 0 | H22: =H20+H21 -> 22910 | I22: 0 | J22: 22910 | K22: 0 | L22: ='rrr 08'!N82 -> 0 | M22: ='rrr 08'!M82 -> 0 | O22: 0
B23: ;ksx loZ;ksx | D23: =D22+D19 -> 5555511 | E23: 6333330 | F23: 7860810 | G23: =G22+G19 -> 2500000 | H23: =H22+H19 -> 5582402 | I23: =I22+I19 -> 1500000 | J23: =J22+J19 -> 7082402 | K23: =K22+K19 -> 305740 | L23: =L19+L22 -> 1805740 | M23: =M19+M22 -> 1858870 | O23: 1858870
B24: =Profile!A26 -> dk;kZy; O;; | D24: =Profile!F26 -> 0 | E24: =Profile!G26 -> 0 | F24: =Profile!H26 -> 0 | G24: =Profile!C26 -> 0 | H24: =Profile!P26 -> 0 | I24: =Profile!Q26 -> 0 | J24: =H24+I24 -> 0 | K24: =L24-I24 -> 0 | L24: =Profile!AK26 -> 0 | M24: =Profile!AL24 -> 0 | O24: 0
B25: =Profile!A27 -> fdjk;k dj jk;fYV | D25: =Profile!F27 -> 0 | E25: =Profile!G27 -> 0 | F25: =Profile!H27 -> 0 | G25: =Profile!C27 -> 0 | H25: =Profile!P27 -> 0 | I25: =Profile!Q27 -> 0 | J25: =H25+I25 -> 0 | K25: =L25-I25 -> 0 | L25: =Profile!AK27 -> 0 | M25: =Profile!AL25 -> 0 | O25: 0
B26: =Profile!A28 -> e'khujh lkt lkeku | D26: =Profile!F28 -> 0 | E26: =Profile!G28 -> 0 | F26: =Profile!H28 -> 0 | G26: =Profile!C28 -> 0 | H26: =Profile!P28 -> 0 | I26: =Profile!Q28 -> 0 | J26: 0 | K26: 0 | L26: =Profile!AK28 -> 0 | M26: =Profile!AL26 -> 0 | O26: 0
B27: =Profile!A29 -> iqLrdky; | D27: =Profile!F29 -> 0 | E27: =Profile!G29 -> 0 | F27: =Profile!H29 -> 0 | G27: =Profile!C29 -> 0 | H27: =Profile!P29 -> 0 | I27: =Profile!Q29 -> 0 | J27: 0 | K27: =L27-I27 -> 0 | L27: =Profile!AK29 -> 0 | M27: =Profile!AL27 -> 0 | O27: 0
B28: =Profile!A30 -> iz;ksx'kkyk | D28: =Profile!F30 -> 0 | E28: =Profile!G30 -> 0 | F28: =Profile!H30 -> 0 | G28: =Profile!C30 -> 0 | H28: =Profile!P30 -> 0 | I28: =Profile!Q30 -> 0 | J28: 0 | K28: 0 | L28: =Profile!AK30 -> 0 | M28: =Profile!AL28 -> 0 | O28: 0
B29: =Profile!A31 -> ofnZ;ka | D29: =Profile!F31 -> 3600 | E29: =Profile!G31 -> 3600 | F29: =Profile!H31 -> 1950 | G29: =Profile!C31 -> 0 | H29: =Profile!P31 -> 1950 | I29: =Profile!Q31 -> 0 | J29: 1950 | K29: 1950 | L29: =Profile!N31 -> 1950 | M29: =Profile!AL31 -> 1950 | O29: 1950
B30: =Profile!A32 -> vU; izHkkj | D30: =Profile!F32 -> 0 | E30: =Profile!G32 -> 0 | F30: =Profile!H32 -> 0 | G30: =Profile!C32 -> 0 | H30: =Profile!P32 -> 0 | I30: =Profile!Q32 -> 0 | J30: 0 | K30: 0 | L30: =Profile!AK32 -> 0 | M30: =Profile!AL32 -> 0 | O30: 0
B31: =Profile!A33 -> foHkkxh;lsokvksa ij fof'k"V O;; | D31: =Profile!F33 -> 0 | E31: =Profile!G33 -> 0 | F31: =Profile!H33 -> 0 | G31: =Profile!C33 -> 0 | H31: =Profile!P33 -> 0 | I31: =Profile!Q33 -> 0 | J31: 0 | K31: 0 | L31: =Profile!AK33 -> 0 | M31: =Profile!AL33 -> 0 | O31: 0
B32: ;ksx | D32: =D31+D28+D27+D26+D25+D24+D29+D30 -> 3600 | E32: =E31+E28+E27+E26+E25+E24+E29+E30 -> 3600 | F32: 1950 | G32: 0 | H32: 1950 | I32: 0 | J32: =J31+J28+J27+J26+J25+J24+J29+J30 -> 1950 | K32: =K31+K28+K27+K26+K25+K24+K29+K30 -> 1950 | L32: =L31+L28+L27+L26+L25+L24+L29+L30 -> 1950 | M32: =M31+M28+M27+M26+M25+M24+M29+M30 -> 1950 | O32: =M32+N32 -> 1950
B33: ;ksx egk;ksx | D33: =D32+D23 -> 5559111 | E33: 6336930 | F33: 7862760 | G33: 2500000 | H33: 5584352 | I33: 1500000 | J33: 7084352 | K33: 307690 | L33: 1807690 | M33: 1860820 | O33: 1860820
H34: rS;kj drkZ %& | I34: =Profile!G6 -> lqfer fxjh
I35: =Profile!$I$6 -> 1234567890 | O35: =Profile!A3 -> ihbZbZvks 10tSM ,oa iz/kkukpk;Z
O36: =Profile!A4 -> jktdh; mPp ek/;fed fo|ky; | P36: =Profile!B4 -> 0
O37: =Profile!A5 -> 15tSM Jhxaxkuxj | P37: =Profile!B5 -> 0
O38: =Profile!$F$4 -> 2405
B41: Øekad | C41: in uke | F41: u;k@ØekssUu;u | H41: is cSaM | K41: xzsM is | M41: dqy in | O41: fooj.k
B42: 1 | C42: 2 | F42: 3 | H42: 4 | K42: 5 | M42: 6 | O42: 7
B43: 1
B44: 2
B45: 3
B46: 4
B47: 5
B48: 6
B49: 7
B52: vU; uohu vkbVe ds fy, izi=
B53: Øekad | C53: uohu vkbVe izdkj | E53: Ø; @ fdjk;k | G53: vkbVe dk uke | I53: la[;k | K53: vkorhZ O;; ekfld | M53: vukorhZ Hkkj | O53: dqy okf"kZd Hkkj | R53: vU; fooj.k
B54: 1
B55: 2
B56: 3
B57: 4
B58: 5
B59: 6
B61: izekf.kr fd;k tkrk gS fd mi;qZDr lwpuk dh esjs }kjk O;fDrxr :Ik ls tkap dj yh xbZ gS vksj bls lgh ik;k x;k gSA

Sheet rrr10
A1: izi= 10 | J1: ctV gSM | K1: =Profile!$C$3 -> 2202-02-109-27-01
A2: vk; dk foLr`r ctV vuqeku forh; o"kZ ---------------------¼1vizSy ls 31ekpZ rd½ dk | K2: MhMhvks dksM | L2: =Profile!$G$35 -> 2405 | M2: =Profile!$K$36 -> LVsV Q.M
A3: dk;kZy; & | C3: =Profile!$D$36 -> 15tSM Jhxaxkuxj
A4: dk;kZy; v/;{k MhMhvks uke %& | D4: =Profile!$G$4 -> izHkkr 'kekZ | H4: =Profile!$I$4 -> 1234567890 | J4: foHkkx dk uke %& | L4: =Profile!$G$2 -> f'k{kk foHkkx | N4: j lgL=ksa esa
A5: Øe l[;k | B5: ys[kk dk 'kh"kZ nh?kZ 'kh"kZ@ minh?kZ 'kh"kZ@ y?kq'kh"kZ@ mi'kh"kZ | C5: okLrfod O;; vkadM+s ¼xr iwoZ rhu o"kksZ ds½ | F5: ='rrr 09'!$G$6 -> vk; O;; ds vuqeku ckcr~ pkyw o"kZ | G5: okLrfod vk; vkadM+s | J5: vxLr ls ekpZ rd dk laHkkfor vk; ¼pkyw o"kZ½ | K5: la'kksf/kr vuqeku ¼pkyw o"kZ½ 8$10 | L5: vk; O;; ds vuqeku ckcr ¼vkxkeh o"kZ½ | M5: o`f)¼$½ ;k deh¼&½
C6: ='rrr 09'!D7 -> 2019-20 | D6: ='rrr 09'!E7 -> 2020-21 | E6: ='rrr 09'!$F$7 -> 21&22 esa ekpZ2022 dk th-,-19 | G6: vxLr ls ekpZ rd ¼xr o"kZ½ | H6: viszy ls tqykbZ rd ¼pkyw o"kZ½ | I6: dkye 7 o 8 dk ;ksx | M6: 6 vkSj 11 esa | N6: 9 vkSj 11 esa | O6: 11 vkSj 12 esa
A7: 1 | B7: 2 | C7: 3 | D7: 4 | E7: 5 | F7: 6 | G7: 7 | H7: 8 | I7: 9 | J7: 10 | K7: 11 | L7: 12 | M7: 13 | N7: 14 | O7: 15
B8: f'k{k.k 'kqYd | C8: =Profile!F15 -> 0 | D8: =Profile!G15 -> 0 | E8: =Profile!H15 -> 0 | F8: =K8 -> 0 | G8: =Profile!I15 -> 0 | H8: =Profile!J15 -> 0 | I8: =G8+H8 -> 0 | J8: =Profile!K15 -> 0 | K8: =H8+J8 -> 0 | L8: =Profile!L15 -> 0
B9: Vh-lh- | C9: =Profile!F16 -> 85 | D9: =Profile!G16 -> 95 | E9: =Profile!H16 -> 50 | F9: =K9 -> 60 | G9: =Profile!I16 -> 0 | H9: =Profile!J16 -> 45 | I9: =G9+H9 -> 45 | J9: =Profile!K16 -> 15 | K9: =H9+J9 -> 60 | L9: =Profile!L16 -> 60
B10: izos'k 'kqYd | C10: =Profile!F17 -> 50 | D10: =Profile!G17 -> 70 | E10: =Profile!H17 -> 40 | F10: 40 | G10: =Profile!I17 -> 0 | H10: =Profile!J17 -> 30 | I10: 30 | J10: =Profile!K17 -> 10 | K10: 40 | L10: =Profile!L17 -> 50
B11: vuqi;ksxh lkeku ds fuLrkj.k ls vk; | C11: =Profile!F18 -> 0 | D11: =Profile!G18 -> 0 | E11: =Profile!H18 -> 0 | F11: 0 | G11: =Profile!I18 -> 0 | H11: =Profile!J18 -> 0 | I11: 0 | J11: =Profile!K18 -> 0 | K11: 0 | L11: =Profile!L18 -> 0
B12: fofo/k | C12: =Profile!F19 -> 0 | D12: =Profile!G19 -> 0 | E12: =Profile!H19 -> 0 | F12: 0 | G12: =Profile!I19 -> 0 | H12: =Profile!J19 -> 0 | I12: 0 | J12: =Profile!K19 -> 0 | K12: 0 | L12: =Profile!L19 -> 0
B13: vU; | C13: =Profile!F20 -> 0 | D13: =Profile!G20 -> 0 | E13: =Profile!H20 -> 5 | F13: 0 | G13: =Profile!I20 -> 0 | H13: =Profile!J20 -> 0 | I13: 0 | J13: =Profile!K20 -> 0 | K13: 0 | L13: =Profile!L20 -> 0
B14: ;ksx | C14: =C13+C10+C9+C8+C11+C12 -> 135 | D14: =D13+D10+D9+D8+D11+D12 -> 165 | E14: 95 | F14: =F13+F10+F9+F8+F11+F12 -> 100 | G14: =G13+G10+G9+G8+G11+G12 -> 0 | H14: =H13+H10+H9+H8+H11+H12 -> 75 | I14: =I13+I10+I9+I8+I11+I12 -> 75 | J14: =J13+J10+J9+J8+J11+J12 -> 25 | K14: =K13+K10+K9+K8+K11+K12 -> 100 | L14: =L13+L10+L9+L8+L11+L12 -> 110
L18: =Profile!A3 -> ihbZbZvks 10tSM ,oa iz/kkukpk;Z
L19: =Profile!A4 -> jktdh; mPp ek/;fed fo|ky;
G20: rS;kj drkZ %& | H20: =Profile!G6 -> lqfer fxjh | L20: =Profile!A5 -> 15tSM Jhxaxkuxj
H21: =Profile!$I$6 -> 1234567890 | L21: =Profile!$F$4 -> 2405

Sheet P1
A1: =Profile!$A$36 -> dk;kZy; %& | C1: =Profile!$D$36 -> 15tSM Jhxaxkuxj
A2: izi= 1 | F2: ctV gSM | G2: =Profile!$C$3 -> 2202-02-109-27-01
A3: dk;kZy; v/;{k MhMhvks uke %& | D3: =Profile!$G$4 -> izHkkr 'kekZ | F3: =Profile!$I$4 -> 1234567890
A4: ys[kk en | C4: 01 laosru dk x.ku @ ekax izi= | F4: =Profile!$K$36 -> LVsV Q.M | H4: jkf'k yk[kksa esa
A5: Ø-la- | B5: vkWfQl vkbZ-Mh- | C5: fo|ky; dk uke | D5: forh; o"kZ 2022&23 esa laosru esa vkaCkfVr jkf'k | E5: 07@22 rd dk okLrfod O;; | F5: 08@22 ls 03@23 rd gksus okyk vuqekfur O;; | G5: forh; o"kZ esa gksus okyk dqy O;; | H5: o"kZ 2022&23 vfrfjDr ds fy, vko';drk
G6: ;ksx dkWye ¼5$6½ | H6: ;ksx dkWye ¼4&7½
A7: 1 | B7: 2 | C7: 3 | D7: 4 | E7: 5 | F7: 6 | G7: 7 | H7: 8
A8: 1 | B8: =Profile!$G$35 -> 2405 | C8: =Profile!$D$36 -> 15tSM Jhxaxkuxj | D8: ='rrr 09'!$G$19 -> 2500000 | E8: ='rrr 09'!$I$19 -> 1500000 | F8: ='rrr 09'!$K$19 -> 305740 | G8: =E8+F8 -> 1805740 | H8: =D8-G8 -> 694260
E10: rS;kj drkZ %& | F10: =Profile!$G$6 -> lqfer fxjh
F11: =Profile!$I$6 -> 1234567890 | G11: =Profile!A3 -> ihbZbZvks 10tSM ,oa iz/kkukpk;Z
G12: =Profile!A4 -> jktdh; mPp ek/;fed fo|ky; | H12: =Profile!B4 -> 0
G13: =Profile!A5 -> 15tSM Jhxaxkuxj | H13: =Profile!B5 -> 0
G14: =Profile!$F$4 -> 2405

Sheet P3
A1: =Profile!A36 -> dk;kZy; %& | D1: =Profile!D36 -> 15tSM Jhxaxkuxj
A2: ¼v½ fu;fer Lohd`r inks dk fooj.k | I2: ctV gSM | J2: =Profile!$C$3 -> 2202-02-109-27-01
A3: ys[kk dk 'kh"kZ nh?kZ 'kh"kZ@ minh?kZ 'kh"kZ@ y?kq'kh"kZ@ mi'kh"kZ | B3: ukWuIyku @ Iyku @ lh-,l-,l- | C3: in uke | D3: ysoy@ xzsM is | E3: Lohd`r inksa dh la[;k ¼fnukad 01-04-2020 dh fLFkfr½ | F3: pkyw o"kZ 2020&2021 esa Lohd`r u;s inksa dh la[;k | G3: pkyw o"kZ 2020&2021 esa lekIr fd;s x;s inksa dh la[;k | H3: orZeku inkas dh la[;k ¼dkWye la[;k 5+6-7½ | I3: fu;fer dk;Zjr | K3: 31-08-2020 dks fjDr inksa dh la[;k | L3: fnukad ftlls in fjDr gS
I4: 1tuojh 2004 ls iwoZ fu;qfDr | J4: 1tuojh 2004 ds Ik'pkr fu;qfDr
A5: 1 | B5: 2 | C5: 3 | D5: 4 | E5: 5 | F5: 6 | G5: 7 | H5: 8 | I5: 9 | J5: 10 | K5: 11 | L5: 12
A6: =Profile!A44 -> jktif=r | B6: =Profile!$K$36 -> LVsV Q.M | C6: =Profile!G44 -> iz/kkukpk;Z | D6: =Profile!I44 -> 16 | E6: 0 | F6: 0 | G6: 0 | H6: =E6+F6-G6 -> 0
A7: =Profile!A45 -> jktif=r | B7: =Profile!$K$36 -> LVsV Q.M | C7: =Profile!G45 -> O;k[;krk | D7: =Profile!I45 -> 16 | E7: 0 | F7: 0 | G7: 0 | H7: =E7+F7-G7 -> 0
A8: =Profile!A46 -> jktif=r | B8: =Profile!$K$36 -> LVsV Q.M | C8: =Profile!G46 -> O;k[;krk | D8: =Profile!I46 -> 16 | E8: 0 | F8: 0 | G8: 0 | H8: 0
A9: =Profile!A47 -> jktif=r | B9: =Profile!$K$36 -> LVsV Q.M | C9: =Profile!G47 -> O;k[;krk | D9: =Profile!I47 -> 16 | E9: 0 | F9: 0 | G9: 0 | H9: 0
A10: =Profile!A48 -> jktif=r | B10: =Profile!$K$36 -> LVsV Q.M | C10: =Profile!G48 -> O;k[;krk | D10: =Profile!I48 -> 16 | E10: 0 | F10: 0 | G10: 0 | H10: 0
A11: =Profile!A49 -> jktif=r | B11: =Profile!$K$36 -> LVsV Q.M | C11: =Profile!G49 -> O;k[;krk | D11: =Profile!I49 -> 6 | E11: 0 | F11: 0 | G11: 0 | H11: 0
A12: =Profile!A50 -> jktif=r | B12: =Profile!$K$36 -> LVsV Q.M | C12: =Profile!G50 -> O;k[;krk | D12: =Profile!I50 -> 7 | E12: 0 | F12: 0 | G12: 0 | H12: 0
A13: =Profile!A66 -> vjktif=r | B13: =Profile!$K$36 -> LVsV Q.M | C13: =Profile!G66 -> ofj"B v/;kid | D13: =Profile!I66 -> 11 | E13: 1 | F13: 0 | G13: 0 | H13: 1 | J13: 1
A14: =Profile!A67 -> vjktif=r | B14: =Profile!$K$36 -> LVsV Q.M | C14: =Profile!G67 -> ofj"B v/;kid | D14: =Profile!I67 -> 11 | E14: 1 | F14: 0 | G14: 0 | H14: 1 | J14: 1
A15: =Profile!A68 -> vjktif=r | B15: =Profile!$K$36 -> LVsV Q.M | C15: =Profile!G68 -> ofj"B v/;kid | D15: =Profile!I68 -> 11 | E15: 0 | F15: 0 | G15: 0 | H15: 0
A16: =Profile!A69 -> vjktif=r | B16: =Profile!$K$36 -> LVsV Q.M | C16: =Profile!G69 -> ofj"B v/;kid | D16: =Profile!I69 -> 11 | E16: 0 | F16: 0 | G16: 0 | H16: 0
A17: =Profile!A70 -> vjktif=r | B17: =Profile!$K$36 -> LVsV Q.M | C17: =Profile!G70 -> ofj"B v/;kid | D17: =Profile!I70 -> 11 | E17: 0 | F17: 0 | G17: 0 | H17: 0
A18: =Profile!A71 -> vjktif=r | B18: =Profile!$K$36 -> LVsV Q.M | C18: =Profile!G71 -> ofj"B v/;kid | D18: =Profile!I71 -> 11 | E18: 0 | F18: 0 | G18: 0 | H18: 0
A19: =Profile!A88 -> vjktif=r | B19: =Profile!$K$36 -> LVsV Q.M | C19: =Profile!G88 -> v/;kid&2 | D19: =Profile!I88 -> 10 | E19: 1 | F19: 0 | G19: 0 | H19: 1 | K19: 1
A20: =Profile!A89 -> vjktif=r | B20: =Profile!$K$36 -> LVsV Q.M | C20: =Profile!G89 -> v/;kid&2 | D20: =Profile!I89 -> 10 | E20: 1 | F20: 0 | G20: 0 | H20: 1 | J20: 1
A21: =Profile!A90 -> vjktif=r | B21: =Profile!$K$36 -> LVsV Q.M | C21: =Profile!G90 -> v/;kid&2 | D21: =Profile!I90 -> 10 | E21: 1 | F21: 0 | G21: 0 | H21: 1 | J21: 1
A22: =Profile!A91 -> vjktif=r | B22: =Profile!$K$36 -> LVsV Q.M | C22: =Profile!G91 -> v/;kid&1 | D22: =Profile!I91 -> 10 | E22: 1 | F22: 0 | G22: 0 | H22: 1 | I22: 1
A23: =Profile!A92 -> vjktif=r | B23: =Profile!$K$36 -> LVsV Q.M | C23: =Profile!G92 -> v/;kid&1 | D23: =Profile!I92 -> 10 | E23: 1 | F23: 0 | G23: 0 | H23: 1 | I23: 1
A24: =Profile!A93 -> vjktif=r | B24: =Profile!$K$36 -> LVsV Q.M | C24: =Profile!G93 -> v/;kid&1 | D24: =Profile!I93 -> 10 | E24: 0 | F24: 0 | G24: 0 | H24: 0
A25: =Profile!A94 -> vjktif=r | B25: =Profile!$K$36 -> LVsV Q.M | C25: =Profile!G94 -> 'kk-f'k{kd | D25: =Profile!I94 -> 10 | E25: 1 | F25: 0 | G25: 0 | H25: 1 | I25: 1
A26: =Profile!A95 -> vjktif=r | B26: =Profile!$K$36 -> LVsV Q.M | C26: =Profile!G95 -> dk;kZy; lgk;d | D26: =Profile!I95 -> 10 | E26: 0 | F26: 0 | G26: 0 | H26: 0
A27: =Profile!A96 -> vjktif=r | B27: =Profile!$K$36 -> LVsV Q.M | C27: =Profile!G96 -> ofj"B fyfid | D27: =Profile!I96 -> 8 | E27: 1 | F27: 0 | G27: 0 | H27: =E27+F27-G27 -> 1 | J27: 1
A28: =Profile!A97 -> vjktif=r | B28: =Profile!$K$36 -> LVsV Q.M | C28: =Profile!G97 -> dfu"B fyfid | D28: =Profile!I97 -> 5 | E28: 0 | F28: 0 | G28: 0 | H28: =E28+F28-G28 -> 0
A29: =Profile!A98 -> vjktif=r | B29: =Profile!$K$36 -> LVsV Q.M | C29: =Profile!G98 -> lgk;d deZpkjh | D29: =Profile!I98 -> 1 | E29: 1 | F29: 0 | G29: 0 | H29: 1 | I29: 1
A30: =Profile!A99 -> vjktif=r | B30: =Profile!$K$36 -> LVsV Q.M | C30: =Profile!G99 -> lgk;d deZpkjh | D30: =Profile!I99 -> 1 | E30: 1 | F30: 0 | G30: 0 | H30: 1 | K30: 1
A31: =Profile!A100 -> vjktif=r | B31: =Profile!$K$36 -> LVsV Q.M | C31: =Profile!G100 -> lgk;d deZpkjh | D31: =Profile!I100 -> 1 | E31: 0 | F31: 0 | G31: 0 | H31: 0 | I31: 0
C33: dqy | E33: =SUM(E6:E32) -> 11 | F33: =SUM(F6:F32) -> 0 | G33: =SUM(G6:G32) -> 0 | H33: =SUM(H6:H32) -> 11 | I33: =SUM(I13:I32) -> 4 | J33: =SUM(J6:J32) -> 5 | K33: =SUM(K6:K32) -> 2
J35: =Profile!A3 -> ihbZbZvks 10tSM ,oa iz/kkukpk;Z
J36: =Profile!A4 -> jktdh; mPp ek/;fed fo|ky; | K36: =Profile!B4 -> 0
J37: =Profile!A5 -> 15tSM Jhxaxkuxj | K37: =Profile!B5 -> 0
J38: ='P1'!$G$14 -> 2405

Sheet L-1-2
B1: =Profile!A36 -> dk;kZy; %& | C1: =Profile!D36 -> 15tSM Jhxaxkuxj
A2: v/;kid ysoy&1 o ysoy&2 Lohd`r] dk;Zjr o fjDr inks dk fooj.k | F2: 2202-02-109-27-01
A3: en 2202 ukWu Iyku | C3: o"kZ | D3: =Profile!O36 -> RE 2020-2021 | E3: o vkxkeh o"kZ | G3: =Profile!N35 -> BE 2021-2022
A4: ys[kk 'kh"kZd ¼foLr`r 'kh"kZ½ | B4: en | C4: in uke | D4: fo"k; | E4: Lohd`r | F4: dk;Zjr | G4: fjDr | H4: Lohd`r ;ksx
A5: vjktif=r | B5: 2202-02-109-27-01 | C5: v/;kid ysoy&1 | D5: & | E5: 2 | F5: 2 | G5: =E5-F5 -> 0 | H5: =E5+E7+E6 -> 3
A6: vjktif=r | B6: 2202-02-109-01-00 | C6: v/;kid ysoy&1 | D6: & | E6: 1 | F6: 1 | G6: =E6-F6 -> 0
A7: vjktif=r | C7: v/;kid ysoy&1 | D7: & | F7: 0 | G7: =E7-F7 -> 0
A8: vjktif=r | B8: 2202-02-109-27-01 | C8: v/;kid ysoy&2 | D8: vaxzsth | E8: 1 | F8: 0 | G8: =E8-F8 -> 1 | H8: =E8+E9+E10+E11+E12+E13 -> 3
A9: vjktif=r | B9: 2202-02-109-27-01 | D9: fgUnh | E9: 1 | F9: 1 | G9: 0
A10: vjktif=r | D10: xf.kr@foKku | E10: 0 | F10: 0 | G10: 0
A11: vjktif=r | B11: 2202-02-109-27-01 | D11: lkekftd foKku | E11: 1 | F11: 1 | G11: 0
A12: vjktif=r | D12: iatkch | E12: 0 | F12: 0 | G12: 0
A13: vjktif=r | D13: laLd`r | E13: 0 | F13: 0 | G13: 0
A14: dqy | E14: =E5+E7+E8+E9+E10+E11+E12+E13+E6 -> 6 | F14: =F5+F7+F8+F9+F10+F11+F12+F13+F6 -> 5 | G14: 1 | H14: 6
B16: =Profile!C3 -> 2202-02-109-27-01 | F16: ='P3'!J35 -> ihbZbZvks 10tSM ,oa iz/kkukpk;Z
F17: ='P3'!J36 -> jktdh; mPp ek/;fed fo|ky; | G17: ='P3'!K36 -> 0 | H17: ='P3'!L36 -> 0
F18: ='P3'!J37 -> 15tSM Jhxaxkuxj | G18: ='P3'!K37 -> 0 | H18: ='P3'!L37 -> 0

Sheet retierment
A1: =Profile!A36 -> dk;kZy; %& | D1: =Profile!D36 -> 15tSM Jhxaxkuxj
A2: izi= 12 , | G2: ctV gSM | H2: =Profile!$C$3 -> 2202-02-109-27-01
A3: osru J`a[kyk 1 ls 6 rd lsokfuo`r gksus okys dkfeZd dk fooj.k
A4: en 2202 ukWu Iyku | D4: o"kZ | E4: =Profile!O36 -> RE 2020-2021 | F4: o vkxkeh o"kZ | H4: =Profile!M36 -> 2023&2024
A5: Ø-la | B5: ctV en | C5: deZpkjh dk uke | D5: osru Ja`[kyk | E5: ossru ysoy | F5: in uke | G5: lsokfuo`r fnukad | H5: lsokfuo`r deZpkjh dh lsokfuo`fr ds le; ns; mikftZr vodk'k | I5: dkfeZd dk lsokfuo`fr ds le; ewy osru | J5: lsokfuo`r deZpkjh dh jde
A6: 1 | B6: ukWu Iyku | J6: =H6*I6/30 -> 0
A7: 2 | B7: ukWu Iyku ckfydk | J7: =H7*I7/30 -> 0
A8: 3 | B8: ukWu Iyku | J8: 0
A9: 4 | B9: ukWu Iyku | J9: 0
C11: =Profile!C3 -> 2202-02-109-27-01 | H11: =Profile!A3 -> ihbZbZvks 10tSM ,oa iz/kkukpk;Z
H12: =Profile!A4 -> jktdh; mPp ek/;fed fo|ky; | I12: =Profile!B4 -> 0
H13: =Profile!A5 -> 15tSM Jhxaxkuxj | I13: =Profile!B5 -> 0
H14: =Profile!$F$4 -> 2405

Sheet FIX PAY
C1: uke dk;kZy;& | D1: =Profile!$C$1 -> 15tSM Jhxaxkuxj
E2: lafonk osru ij fu;qä dkfeZdksa dk fooj.k | G2: vkWfQl vkbZMh& | H2: =Profile!$F$4 -> 2405
C3: ys[kk 'kh"kZd& | D3: =Profile!C3 -> 2202-02-109-27-01
E4: laosru
C5: ekax la[;k | D5: =Profile!$C$11 -> 24 | F5: Ldhe dk uke | G5: =Profile!$C$10 -> LVsV Q.M
B7: Ø-la- | C7: uke dkfeZd | D7: in uke | E7: tUe frfFk | F7: fu;qfä frfFk | G7: ekfld ekuns; | H7: 12 ekg dk ekuns; | I7: vkxkeh o"kZ es 12 ekg dk ekuns;
B8: 1 | C8: 2 | D8: 3 | E8: 4 | F8: 5 | G8: 6 | H8: 7 | I8: 8
B9: =Profile!C122 -> 1 | C9: =Profile!D122 -> 0 | D9: =Profile!E122 -> 0 | E9: =Profile!F122 -> 00:00:00 | F9: =Profile!G122 -> 00:00:00 | G9: =Profile!H122 -> 0 | H9: =Profile!I122 -> 0 | I9: =Profile!J122 -> 0
B10: =Profile!C123 -> 2 | C10: =Profile!D123 ->  | D10: =Profile!E123 ->  | E10: =Profile!F123 ->  | F10: =Profile!G123 ->  | G10: =Profile!H123 -> 0 | H10: =Profile!I123 -> 0 | I10: =Profile!J123 -> 0
B11: =Profile!C124 -> 3 | C11: =Profile!D124 ->  | D11: =Profile!E124 ->  | E11: =Profile!F124 ->  | F11: =Profile!G124 ->  | G11: =Profile!H124 -> 0 | H11: =Profile!I124 -> 0 | I11: =Profile!J124 -> 0
B12: =Profile!C125 -> 4 | C12: =Profile!D125 ->  | D12: =Profile!E125 ->  | E12: =Profile!F125 ->  | F12: =Profile!G125 ->  | G12: =Profile!H125 -> 0 | H12: =Profile!I125 -> 0 | I12: =Profile!J125 -> 0
B13: =Profile!C126 -> 5 | C13: =Profile!D126 ->  | D13: =Profile!E126 ->  | E13: =Profile!F126 ->  | F13: =Profile!G126 ->  | G13: =Profile!H126 -> 0 | H13: =Profile!I126 -> 0 | I13: =Profile!J126 -> 0
B14: =Profile!C127 -> 6 | C14: =Profile!D127 ->  | D14: =Profile!E127 ->  | E14: =Profile!F127 ->  | F14: =Profile!G127 ->  | G14: =Profile!H127 -> 0 | H14: =Profile!I127 -> 0 | I14: =Profile!J127 -> 0
B15: =Profile!C128 -> 7 | C15: =Profile!D128 ->  | D15: =Profile!E128 ->  | E15: =Profile!F128 ->  | F15: =Profile!G128 ->  | G15: =Profile!H128 -> 0 | H15: =Profile!I128 -> 0 | I15: =Profile!J128 -> 0
B16: =Profile!C129 -> 8 | C16: =Profile!D129 ->  | D16: =Profile!E129 ->  | E16: =Profile!F129 ->  | F16: =Profile!G129 -> 00:00:00 | G16: =Profile!H129 -> 0 | H16: =Profile!I129 -> 0 | I16: =Profile!J129 -> 0
B17: =Profile!C130 -> 9 | C17: =Profile!D130 ->  | D17: =Profile!E130 ->  | E17: =Profile!F130 ->  | F17: =Profile!G130 ->  | G17: =Profile!H130 -> 0 | H17: =Profile!I130 -> 0 | I17: =Profile!J130 -> 0
B18: =Profile!C131 -> 10 | C18: =Profile!D131 ->  | D18: =Profile!E131 ->  | E18: =Profile!F131 ->  | F18: =Profile!G131 ->  | G18: =Profile!H131 -> 0 | H18: =Profile!I131 -> 0 | I18: =Profile!J131 -> 0
D19: =Profile!E132 -> TOTAL | G19: =Profile!H132 -> 0 | H19: =Profile!I132 -> 0 | I19: =Profile!J132 -> 0
F22: =Profile!A3 -> ihbZbZvks 10tSM ,oa iz/kkukpk;Z
B23: rS;kj drkZ %& | C23: =Profile!G6 -> lqfer fxjh | F23: =Profile!A4 -> jktdh; mPp ek/;fed fo|ky;
F24: =Profile!A5 -> 15tSM Jhxaxkuxj
F25: =Profile!$F$4 -> 2405

Sheet CHALAN
G1: pkyku fooj.k
A2: fo|ky; dk uke & | D2: jktdh; mPp ek/;fed fo|ky; pkSxkbZa Vksad
A3: ys[kk 'kh"kZd& | C3: 2202 | D3: lkekU; f'k{kk | G3: vkWfQl vkbZMh& | H3: 27306
C4: 0002 | D4: ek/;fed f'k{kk
C5: 0109 | D5: jktdh; mPp ek/;fed fo|ky;
C6: 0027 | D6: yM+dksa ds fo|ky;
C7: 0001 | D7: yM+dksa ds fo|ky;
A9: ekax la[;k | C9: 24 | G9: Ldhe dk uke | H9: LVsV Q.M
A11: Ø- la- | B11: pkyu uEcj o fnukad | C11: vizsy 19 ls ekpZ 20 | G11: pkyu uEcj o fnukad | H11: vxLr 19 ls ekpZ 20 | L11: pkyu uEcj o fnukad | M11: vizsy 20 ls tqykbZ 20
C12: f'k{k.k Qhl ,oa vU; Qhlsa | D12: vuqi;ksxh lkekuksa ls vk; | E12: vf/kd Hkqxrku ls olwyh | F12: fofo/k | H12: f'k{k.k Qhl ,oa vU; Qhlsa | I12: vuqi;ksxh lkekuksa ls vk; | J12: vf/kd Hkqxrku ls olwyh | K12: fofo/k | M12: f'k{k.k Qhl ,oa vU; Qhlsa | N12: vuqi;ksxh lkekuksa ls vk; | O12: vf/kd Hkqxrku ls olwyh | P12: fofo/k
C13: 10 | D13: 20 | E13: 30 | F13: 40 | H13: 50 | I13: 60 | J13: 70 | K13: 80 | M13: 90 | N13: 100 | O13: 110 | P13: 120
B28: TOTAL | C28: 10 | D28: 20 | E28: 30 | F28: 40 | H28: 50 | I28: 60 | J28: 70 | K28: 80 | M28: 90 | N28: 100 | O28: 110 | P28: 120
M30: =Profile!A3 -> ihbZbZvks 10tSM ,oa iz/kkukpk;Z
M31: =Profile!A4 -> jktdh; mPp ek/;fed fo|ky;
M32: =Profile!A5 -> 15tSM Jhxaxkuxj
M33: =Profile!$F$4 -> 2405

Sheet bank ac SCHOOL
A1: ¼c½ cSad [kkrks fLFkfr dk fooj.k
A2: ='P3'!$D$1 -> 15tSM Jhxaxkuxj | F2: foHkkx dk uke %& f'k{kk foHkkx
A4: cSd rFkk 'kk[kk dk uke ¼bZ,Qlh dksM½ | B4: cSd [kkrs dk uke e; [kkrk la[;k | C4: in uke ftlds uke ls [kkrk gS | D4: foHkkxh; @ xSj foHkkxh; | E4: 01-04-2019 dks vo'ks"k jkf'k | G4: 2019&2020 | J4: 31-08-2019 dks 'ks"k jkf'k ¼5$6&7½
G5: gLrkUrfjr jkf'k | H5: fnukad 31 vxLr rd O;; jkf'k
A6: 1 | B6: 2 | C6: 3 | D6: 4 | E6: 5 | G6: 6 | H6: 7 | J6: 8
A7: vkS-ch-lh 15tSM vksvkjchlh01100506 | B7: RAJKIYE MADHYAMIK VIDHALYA 15Z 0506204 0000210 | C7: iz/kkukpk;Z | D7: foHkkxh; fo|kFkhZ dks"k | E7: cash | F7: 0 | G7: 205 | H7: 0 | J7: =F7+G7-H7 -> 205
E8: bank | F8: 2991.65 | G8: =11432-205 -> 11227 | H8: 1265 | J8: =F8+G8-H8 -> 12953.65
E9: F.D. | F9: 0 | G9: 0 | H9: 0 | J9: 0
E10: Total | F10: =F9+F8+F7 -> 2991.65 | G10: =G9+G8+G7 -> 11432 | H10: 1265 | I10: 0 | J10: 13158.65
A11: vkS-ch-lh 15tSM vksvkjchlh01100506 | B11: RA.MA.VIDYALA VKASH KOSH 0506204 0000080 | C11: iz/kkukpk;Z | D11: foHkkxh; fodkl dks"k | E11: cash | F11: 0 | G11: 0 | H11: 0 | J11: =F11+G11-H11 -> 0
E12: bank | F12: 26604 | G12: 15234 | H12: 9990 | J12: 31848
E13: F.D. | F13: 0 | G13: 0 | H13: 0 | J13: 0
E14: Total | F14: =F13+F12+F11 -> 26604 | G14: =G13+G12+G11 -> 15234 | H14: =H13+H12+H11 -> 9990 | I14: =I13+I12+I11 -> 0 | J14: 31848
G17: =Profile!A3 -> ihbZbZvks 10tSM ,oa iz/kkukpk;Z
G18: =Profile!A4 -> jktdh; mPp ek/;fed fo|ky; | H18: =Profile!B4 -> 0
G19: =Profile!A5 -> 15tSM Jhxaxkuxj | H19: =Profile!B5 -> 0
G20: =Profile!$F$4 -> 2405

Sheet R01
A1: ='P3'!$D$1 -> 15tSM Jhxaxkuxj
A2: izi=
A3: =Profile!$A$35 -> o"kZ 2021&2022 ds fy, jsUt ds vuqlkj laosru dh jkf'k
A4: Ø-la- | B4: in dk uke | C4: ,u-ih-,l-] lkekU;] fjDr | D4: xzsM is | E4: ,d ekg dh jkf'k | F4: 12 ekg dh jkf'k | G4: 3 izfr'kr osru o`f) | H4: x.kuk osru o`f)
A5: 1 | B5: =Profile!G44 -> iz/kkukpk;Z | C5: lkekU; | D5: =Profile!I44 -> 16 | E5: =Profile!J44 -> 40300 | F5: =E5*12 -> 483600 | G5: =Profile!P44 -> 1200 | H5: =ROUNDUP((E5)*(3%),0) -> 1209
A6: 2 | B6: =Profile!G45 -> O;k[;krk | C6: lkekU; | D6: =Profile!I45 -> 16 | E6: =Profile!J45 -> 59500 | F6: =E6*12 -> 714000 | G6: =Profile!P45 -> 1800 | H6: =ROUNDUP((E6)*(3%),0) -> 1785
A7: 3 | B7: =Profile!G46 -> O;k[;krk | C7: lkekU; | D7: =Profile!I46 -> 16 | E7: =Profile!J46 -> 0 | F7: 0 | G7: =Profile!P46 -> 0 | H7: 0
A8: 4 | B8: =Profile!G47 -> O;k[;krk | C8: ,uih,l | D8: =Profile!I47 -> 16 | E8: =Profile!J47 -> 0 | F8: 0 | G8: =Profile!P47 -> 0 | H8: 0
A9: 5 | B9: =Profile!G48 -> O;k[;krk | D9: =Profile!I48 -> 16 | E9: =Profile!J48 -> 0 | F9: 0 | G9: =Profile!P48 -> 0 | H9: 0
A10: 6 | B10: =Profile!G49 -> O;k[;krk | D10: =Profile!I49 -> 6 | E10: =Profile!J49 -> 0 | F10: 0 | G10: =Profile!P49 -> 0 | H10: 0
A11: 7 | B11: =Profile!G50 -> O;k[;krk | D11: =Profile!I50 -> 7 | E11: =Profile!J50 -> 0 | F11: 0 | G11: =Profile!P50 -> 0 | H11: 0
A12: 1 | B12: =Profile!G66 -> ofj"B v/;kid | C12: lkekU; | D12: =Profile!I66 -> 11 | E12: =Profile!J66 -> 0 | F12: 0 | G12: =Profile!P66 -> 0 | H12: 0
A13: 2 | B13: =Profile!G67 -> ofj"B v/;kid | C13: ,u-ih-,l- fQDl | D13: =Profile!I67 -> 11 | E13: =Profile!J67 -> 0 | F13: 0 | G13: =Profile!P67 -> 0 | H13: 0
A14: 3 | B14: =Profile!G68 -> ofj"B v/;kid | C14: fjDr | D14: =Profile!I68 -> 11 | E14: =Profile!J68 -> 0 | F14: 0 | G14: =Profile!P68 -> 0 | H14: 0
A15: 4 | B15: =Profile!G69 -> ofj"B v/;kid | C15: fjDr | D15: =Profile!I69 -> 11 | E15: =Profile!J69 -> 0 | F15: =E15*12 -> 0 | G15: =Profile!P69 -> 0
A16: 12 | B16: =Profile!G70 -> ofj"B v/;kid | D16: =Profile!I70 -> 11 | E16: =Profile!J70 -> 0 | F16: 0 | G16: =Profile!P70 -> 0
A17: 13 | B17: =Profile!G71 -> ofj"B v/;kid | D17: =Profile!I71 -> 11 | E17: =Profile!J71 -> 0 | F17: 0 | G17: =Profile!P71 -> 0
A18: 5 | B18: =Profile!G88 -> v/;kid&2 | C18: lkekU; | D18: =Profile!I88 -> 10 | E18: =Profile!J88 -> 0 | F18: 0 | G18: =Profile!P88 -> 0
A19: 6 | B19: =Profile!G89 -> v/;kid&2 | C19: ,u-ih-,l- | D19: =Profile!I89 -> 10 | E19: =Profile!J89 -> 0 | F19: =E19*12 -> 0 | G19: =Profile!P89 -> 0
A20: 7 | B20: =Profile!G90 -> v/;kid&2 | C20: fjDr | D20: =Profile!I90 -> 10 | E20: =Profile!J90 -> 0 | F20: 0 | G20: =Profile!P90 -> 0
A21: 8 | B21: =Profile!G91 -> v/;kid&1 | C21: lkekU; | D21: =Profile!I91 -> 10 | E21: =Profile!J91 -> 0 | F21: 0 | G21: =Profile!P91 -> 0
A22: 9 | B22: =Profile!G92 -> v/;kid&1 | C22: ,u-ih-,l- | D22: =Profile!I92 -> 10 | E22: =Profile!J92 -> 0 | F22: 0 | G22: =Profile!P92 -> 0
A23: 19 | B23: =Profile!G93 -> v/;kid&1 | D23: =Profile!I93 -> 10 | E23: =Profile!J93 -> 0 | F23: 0 | G23: =Profile!P93 -> 0 | H23: 0
A24: 10 | B24: =Profile!G94 -> 'kk-f'k{kd | C24: lkekU; | D24: =Profile!I94 -> 10 | E24: =Profile!J94 -> 0 | F24: 0 | G24: =Profile!P94 -> 0 | H24: 0
A25: 21 | B25: =Profile!G95 -> dk;kZy; lgk;d | D25: =Profile!I95 -> 10 | E25: =Profile!J95 -> 0 | F25: 0 | G25: =Profile!P95 -> 0 | H25: 0
A26: 11 | B26: =Profile!G96 -> ofj"B fyfid | C26: ,u-ih-,l- | D26: =Profile!I96 -> 8 | E26: =Profile!J96 -> 0 | F26: 0 | G26: =Profile!P96 -> 0
A27: 12 | B27: =Profile!G97 -> dfu"B fyfid | C27: ,u-ih-,l- | D27: =Profile!I97 -> 5 | E27: =Profile!J97 -> 0 | F27: 0 | G27: =Profile!P97 -> 0
A28: 13 | B28: =Profile!G98 -> lgk;d deZpkjh | C28: lkekU; | D28: =Profile!I98 -> 1 | E28: =Profile!J98 -> 0 | F28: 0 | G28: =Profile!P98 -> 0
A29: 14 | B29: =Profile!G99 -> lgk;d deZpkjh | C29: ,u-ih-,l- | D29: =Profile!I99 -> 1 | E29: =Profile!J99 -> 0 | F29: 0 | G29: =Profile!P99 -> 0
B30: =Profile!G100 -> lgk;d deZpkjh | D30: =Profile!I100 -> 1 | E30: =Profile!J100 -> 0 | F30: 0 | G30: =Profile!P100 -> 0
C31: dqy | E31: =SUM(E5:E30) -> 99800 | F31: =SUM(F5:F30) -> 1197600 | G31: =SUM(G5:G30) -> 3000
C33: lkekU; | E33: =E12+E18+E21+E24+E28 -> 0 | F33: 0 | G33: =G12+G18+G21+G24+G28 -> 0
B34: lk0osru o`f) 8 ekg | E34: =G33*8 -> 0
C35: ,uih,l | E35: =E13+E19+E22+E26+E27+E29 -> 0 | F35: 0 | G35: =G13+G19+G22+G26+G27+G29 -> 0
B36: lk0osru o`f) 8 ekg ,uih,l | E36: =G35*8 -> 0
C37: dqy | E37: =E33+E35 -> 0 | F37: 0 | G37: =G33+G35 -> 0
B38: lk0osru o`f) 8 ekg dqy | E38: =E36+E34 -> 0
C40: egk;ksx | E40: =F37+E38 -> 0

Sheet Sheet1 (hidden)
A1: dk;kZy;& | C1: jktdh; mPp ek/;fed fo|ky; pkSxkbZa Vksad
A2: eksgj& | C2: Budget Estemate
A3: ihZbZbZvks 10tSM ,oa iz/kkukpk;Z | F3: vkWfQl vkbZMh | G3: uke MhMhvks | I3: uEcj
A4: jktdh; mPp ek/;fed fo|ky; | F4: 2405 | G4: izHkkr 'kekZ | I4: 9414318727
A5: 15tSM Jhxaxkuxj | F5: rS;kj drkZ | G5: lqfer fxjh | I5: 9414631519
A6: ctV en eq[; 'kh"kZ | C6: 2202 | D6: lkekU; f'k{kk
C7: 02 | D7: ek/;fed f'k{kk
C8: 109 | D8: jktdh; mPp ek/;fed fo|ky;
C9: 27 | D9: yM+dksa ds fo|ky;
C10: 01 | D10: yM+dksa ds fo|ky;
A13: Ldhe dk uke | F13: LVsV Q.M
A14: ekax la[;k | C14: 24 | H14: Arear Month | I14: 8
A15: ctV Lohd`fr esa fo|ky; dh Ø-la- | F15: 14 | G15: egakbZ HkÙk nj | H15: 17 | I15: DA Arr. | J15: 0 | K15: HRA | L15: 8
A16: xr rhu o"ksksZa ds vk; ,oa O;; dk fooj.k | B16: gsM | F16: 2017-18 | G16: 2018-19 | H16: 2019-20 | I16: 08/19 to 03/20 | J16: 04/20 to 07/20 | K16: la'kksf/kr vuqeku 2020&21 | L16: vk; vuqeku 2021&2022
A17: vk;
A18: f'k{k.k Qhl o vU; Qhl | B18: 0202&02 | C18: 102 | D18: 01 | E18: 00 | F18: 110 | G18: 200 | H18: 210 | I18: 150 | J18: 90 | K18: 220 | L18: 230
A19: ikB~; iqLrdksa ls vk; | B19: 0202&02 | C19: 102 | D19: 02
A20: fofo/k | B20: 0202&02 | C20: 102 | D20: 03 | E20: 01
A21: vf/kd Hkqxrku dh olwyh | B21: 0202&02 | C21: 102 | D21: 03 | E21: 02
A22: vuqi;ksxh lkeku ds fuLrkj.k ls vk; | B22: 0202&02 | C22: 102 | D22: 05 | E22: 02
A23: O;; | C23: Lohd`r ctV 20&21 | F23: [kpksZa dk fooj.k | M23: O;; 04@20 ls 07@20
A24: en | B24: gsM | C24: dqy ;ksx | D24: jkT; fuf/k | E24: dsUnzh; lgk;rk | F24: 2017-18 | G24: 2018-19 | H24: 2019-20 | I24: 08/19 to 03/20 | J24: 04/20 to 07/20 | K24: lEHkkfor O;; 2020&21 | L24: dqy ;ksx | M24: jkT; fuf/k | N24: dsUnzh; lgk;rk
A25: laosru | B25: 01 | C25: =SUM(D25+E25) -> 2384000 | D25: 2384000 | E25: 0 | F25: 3783379 | G25: 4658460 | H25: 4432536 | I25: 2925894 | J25: 289407 | K25: 4652816 | L25: =SUM(J25+K25) -> 4942223 | M25: 289407 | N25: 0
A26: ;k=k O;; | B26: 03 | C26: 0 | D26: 0 | E26: 0 | F26: 0 | G26: 0 | H26: 18750 | I26: 18750 | J26: 0 | K26: 0 | L26: 0 | M26: 0 | N26: 0
A27: fpfdRlk O;; | B27: 04 | C27: 0 | L27: 0 | N27: 0
A28: dk;kZy; O;; | B28: 05 | C28: 0 | L28: 0 | N28: 0
A29: fdjk;k dj jk;fYV | B29: 09 | C29: 0 | L29: 0 | N29: 0
A30: e'khujh lkt lkeku | B30: 20 | C30: 0 | L30: 0 | N30: 0
A31: iqLrdky; | B31: 31 | C31: 0 | L31: 0 | N31: 0
A32: iz;ksx'kkyk | B32: 33 | C32: 0 | L32: 0 | N32: 0
A33: ofnZ;ka | B33: 37 | C33: 0 | L33: 0 | N33: 0
A34: vU; izHkkj | B34: 28 | C34: 0 | L34: 0 | N34: 0
A35: foHkkxh;lsokvksa ij fof'k"V O;; | B35: 57 | C35: 0 | L35: 0 | N35: 0
B37: Developed by- | N37: L-1
B38: Chaturbhuj Jat | F38: प्रधानाचार्य | N38: L-2
B39: Teacher GSSS Chogai | F39: प्रधानाध्यापक | I39: G | J39: M | K39: R | L39: C | M39: S | N39: L-3
F40: व्याख्याता | I40: NG | J40: F | K40: F | L40: W | M40: M | N40: L-4
F41: व्याख्याता शारीरिक शिक्षा | L41: H | N41: L-5
F42: पुस्तकालय अध्यक्ष ग्रेड I | N42: L-6
F43: वरिष्ठ अध्यापक | N43: L-7
F44: वरिष्ठ शारीरिक शिक्षक | N44: L-8
F45: पुस्तकालय अध्यक्ष ग्रेड II | N45: L-9
F46: अध्यापक ग्रेड III | N46: L-10
F47: प्रबोधक | N47: L-11
F48: शारीरिक शिक्षक | N48: L-12
F49: पुस्तकालय अध्यक्ष ग्रेड III | N49: L-13
F50: संस्थापन अधिकारी | N50: L-14
F51: प्रशासनिक अधिकारी | N51: L-15
F52: अतिरिक्त प्रशासनिक अधिकारी | N52: L-16
F53: सहायक प्रशासनिक अधिकारी | N53: L-17
F54: वरिष्ठ सहायक | N54: L-18
F55: कनिष्ठ सहायक | N55: L-19
F56: प्रयोग शाला सहायक | N56: L-20
F57: प्रयोग शाला सेवक | N57: L-21
F58: जमादार | N58: L-22
F59: सहायक कर्मचारी | N59: L-23
F60: ए सी बी ई ओ प्रथम | N60: L-24
F61: सहायक लेखाधिकारी प्रथम
F62: सहायक लेखाधिकारी द्वितीय
F63: कनिष्ठ लेखाकार
F64: अतिरिक्त जिला शिक्षा अधिकारी
F65: मुख्य जिला शिक्षा अधिकारी
F66: संयुक्त निदेशक स्कूल शिक्षा
F67: सी बी ई ओ
F68: प्रबोधक शारीरिक शिक्षक
F69: प्रशिक्षु शिक्षक
F70: व्याख्याता कृषि
F71: कृषि अध्यापक
F72: कृषि प्रमुख
F73: विशेष शिक्षक
F74: ए सी बी ई ओ दवितीय
